Cogmind - Beta 16.1 @@@ ROGUE MODE // 2026.02.13 @ 23:53:38 Player: C0-2MO Result: Destroyed by S-43 Plague with Heavy Machine Gun Performance ------------- Evolutions (9) 4500 Regions Visited (33) 6600 Robots Destroyed (360) 1800 Value Destroyed (21513) 21513 Prototype IDs (157) 3140 Alien Tech Used (10) 2000 Bonus (58672) 58672 TOTAL SCORE: 98225 Bonus ------- High Alert Combat Kills 11938 Follower Combat Kills 2836 Hunted by Unchained 500 Network Hubs Disabled 400 Registered with UFD 300 Met Optimus in HQ 500 Met Zhirov 300 MAIN.C Attacked Warlord 500 Met R17 at Cetus 500 Found Hidden Lab 3000 Met R17 at Research 2000 Destroyed Superfortress 15000 Met Optimus at Protoforge 1000 Executed Drillbomb Mission 10000 Destroyed MAIN.C Guards 500 Met MAIN.C 5000 Destroyed MAIN.C Shell 5000 Friendly Fire -602 Cogmind --------- Core Integrity 0/1600 Matter 295/300 Energy 93/100 System Corruption 6% Temperature Cool (0) Movement Hovering (60) Location -1/Command Parts ------- > --- POWER (2) -------- (None) > --- PROPULSION (8) --- Concept Gyrokinetic System > --- UTILITY (14) ----- Experimental Signal Interpreter Experimental Core Analyzer Graphene Brace > --- WEAPON (2) ------- Advanced Concussive RPG > --- INVENTORY (5) ---- Advanced Phase Shifter Concept Cloak Mesh Peak State ------------ > --- POWER ------------ Concept Zero-point Core Concept Zero-point Core > --- PROPULSION ------- Gravjet Array Gravjet Array Gravjet Array Gravjet Array > --- UTILITY ---------- Concept Antigrav Storage Unit Spectral Analyzer Experimental Signal Interpreter Concept Melee Reflex Suite Concept Weapon Articulator Experimental Core Analyzer Experimental Reaction Control System Advanced Phase Shifter Concept Phase Shift Module Concept RG22 Armor Concept RG22 Armor Graphene Brace Concept Network Penetrator Concept Network Penetrator > --- WEAPON ----------- Sigix Broadsword > --- INVENTORY -------- Concept Zero-point Core Concept Zero-point Core Experimental Antigrav System Experimental Antigrav System Concept Gyrokinetic System Concept Chromion Battery Structural Scanner Advanced Sensor Array Experimental Weapon Cycler Femtoactuators Femtoactuators Advanced Phase Shifter Concept Cloak Mesh Concept Cloak Mesh Experimental Weapon Shielding Concept Beam Splitter Concept Hardlight Director Concept Antimissile System Transdimensional Reconstructor Concept Helical Railcannon Concept Helical Railcannon Concept Blasthammer Concept Deflector Sword Experimental Jetlance Experimental Jetlance [Rating: 311] Favorites ----------- Power Concept Zero-point Core Engine Light Ion Engine Power Core Concept Zero-point Core Reactor Vortex Chain Reactor Propulsion VTOL Module Treads Light Treads Leg Advanced Myomer Leg Hover Unit Gravjet Array Flight Unit VTOL Module Utility Experimental Signal Interpreter Device Advanced Sensor Array Storage Medium Storage Unit Processor Experimental Signal Interpreter Hackware Hacking Suite Protection Concept RG22 Armor Artifact Phase Redirector Weapon Phasing Sabre Energy Gun Enhanced Gamma Rifle Energy Cannon Warp Cannon Ballistic Gun Light Assault Rifle Ballistic Cannon Concept Helical Railcannon Launcher Mini Grenade Launcher Special Weapon Plasma Cutter Impact Weapon Heavy Mace Slashing Weapon Phasing Sabre Piercing Weapon Experimental Jetlance Special Melee Weapon Advanced Datajack Build | -11 -10 -10 -9 -9 -9 -9 -6 -6 -6 -6 -6 -6 -6 -5 -5 -5 -5 -4 -4 -4 -4 -4 -4 -4 -3 -3 -3 -3 -2 -2 -2 -1 -1 ------- Run | Yrd Mat Min Mat Sto Rec Scr Fac Was Fac Ext Cet Arc Hub Fac Upp Upp Zhi Pro Fac Was Fac Upp Upp War Pro Res Arm Lab Res Qua Frg Acc Com Slots Evolved 18 | . . . 2 . . . 6 . . . . . . 2 . . . . 2 . . . . . . 2 . . 2 . . 2 . Power 1 | . . . . . . . . . . . . . . 1 . . . . . . . . . . . . . . . . . . . Propulsion 6 | . . . 2 . . . 2 . . . . . . . . . . . . . . . . . . 2 . . . . . . . Utility 11 | . . . . . . . 4 . . . . . . 1 . . . . 2 . . . . . . . . . 2 . . 2 . Weapon . | . . . . . . . . . . . . . . . . . . . . . . . . . . . . . . . . . . Parts Attached 300 | 6 13 11 10 3 . 3 23 . 7 12 4 11 3 16 3 3 4 1 8 2 26 3 . 6 1 16 1 3 6 7 70 4 14 Power 22 | . 2 2 . . . . 3 . . 1 1 . 1 2 . . 1 . . . 3 . . 1 . . . . . . 4 . 1 Engine 9 | . 2 2 . . . . 3 . . 1 . . 1 . . . . . . . . . . . . . . . . . . . . Core 7 | . . . . . . . . . . . . . . 2 . . . . . . 1 . . . . . . . . . 3 . 1 Reactor 6 | . . . . . . . . . . . 1 . . . . . 1 . . . 2 . . 1 . . . . . . 1 . . Propulsion 98 | 2 5 4 5 1 . 2 8 . 2 3 1 7 2 9 . . 1 . 4 1 6 . . . 1 8 1 . 1 2 19 . 3 Treads 2 | 2 . . . . . . . . . . . . . . . . . . . . . . . . . . . . . . . . . Leg 1 | . . . . . . . . . . . . . . . . . 1 . . . . . . . . . . . . . . . . Wheel . | . . . . . . . . . . . . . . . . . . . . . . . . . . . . . . . . . . Hover 22 | . . . . . . . . . . . . 7 2 1 . . . . 3 1 . . . . . . . . . . 5 . 3 Flight 73 | . 5 4 5 1 . 2 8 . 2 3 1 . . 8 . . . . 1 . 6 . . . 1 8 1 . 1 2 14 . . Utility 129 | 2 3 1 3 . . 1 10 . 2 4 1 3 . 3 2 3 2 1 4 1 15 . . 4 . 7 . 1 4 4 37 4 7 Device 74 | 2 2 . 1 . . . 6 . 1 1 . . . 1 1 1 . . 4 1 10 . . 2 . 7 . . . 3 24 3 4 Storage 10 | . . . 1 . . 1 . . . . . . . 1 . . 1 . . . 1 . . 1 . . . . 1 . 2 . 1 Processor 18 | . . 1 . . . . 2 . . 1 . . . 1 1 1 . 1 . . 2 . . 1 . . . . 1 . 5 . 1 Hackware 14 | . . . 1 . . . 2 . 1 . . 3 . . . . 1 . . . 2 . . . . . . 1 1 . 1 1 . Protection 12 | . 1 . . . . . . . . 2 1 . . . . 1 . . . . . . . . . . . . 1 . 5 . 1 Artifact 1 | . . . . . . . . . . . . . . . . . . . . . . . . . . . . . . 1 . . . Weapon 51 | 2 3 4 2 2 . . 2 . 3 4 1 1 . 2 1 . . . . . 2 3 . 1 . 1 . 2 1 1 10 . 3 Energy Gun 2 | . . . . . . . . . . . . . . . . . . . . . . . . . . . . 1 . . 1 . . Energy Cannon 2 | . . . . 1 . . . . . . . . . . . . . . . . . . . . . . . 1 . . . . . Ballistic Gun 16 | 2 3 3 . 1 . . . . . . 1 . . 2 . . . . . . 2 . . . . . . . . . 2 . . Ballistic Cannon 5 | . . . . . . . . . . 1 . . . . . . . . . . . 1 . . . . . . . . 3 . . Launcher 4 | . . . 1 . . . . . . . . . . . . . . . . . . . . 1 . . . . . . 1 . 1 Special Weapon 3 | . . . . . . . . . 1 1 . . . . . . . . . . . 1 . . . . . . . . . . . Impact Weapon 2 | . . 1 . . . . . . . . . . . . . . . . . . . . . . . . . . . . . . 1 Slashing Weapon 7 | . . . . . . . 1 . . 2 . . . . 1 . . . . . . 1 . . . . . . . 1 1 . . Piercing Weapon 4 | . . . . . . . . . 1 . . . . . . . . . . . . . . . . . . . . . 2 . 1 Special Melee Weapon 6 | . . . 1 . . . 1 . 1 . . 1 . . . . . . . . . . . . . 1 . . 1 . . . . Unidentified Prototypes 57 | . . . . 2 . . 4 . . 2 2 . . . . . 4 . . . . 1 . 5 . 2 . 4 1 6 22 . 2 Parts Lost 104 | . 1 1 1 . . . 3 . . 4 3 5 11 17 . . . . 6 . 9 . . 1 . 1 . . 2 . 11 . 28 Power 11 | . . . . . . . . . . . 1 . 1 4 . . . . . . 1 . . . . . . . . . 1 . 3 Propulsion 42 | . . . 1 . . . 2 . . 2 2 5 7 7 . . . . 3 . 2 . . 1 . . . . . . 3 . 7 Utility 40 | . 1 1 . . . . 1 . . 1 . . 2 5 . . . . 2 . 5 . . . . 1 . . 2 . 7 . 12 Weapon 11 | . . . . . . . . . . 1 . . 1 1 . . . . 1 . 1 . . . . . . . . . . . 6 Highest Loss Streak 23 | . 1 1 1 . . . 1 . . 3 2 3 9 8 . . . . 5 . 3 . . 1 . 1 . . 1 . 2 . 23 To Critical Strikes . | . . . . . . . . . . . . . . . . . . . . . . . . . . . . . . . . . . Average Backups 10 | 1 4 5 6 9 9 9 9 10 9 9 8 8 9 6 5 5 4 5 5 4 4 7 8 7 6 7 7 7 8 9 16 24 18 Power . | . . 1 . . . . . . . . . . . . . . . . . . . . . . 1 1 1 1 1 1 1 2 1 Propulsion 1 | . 1 2 2 4 3 2 1 . 1 1 . . . . . . . . . . . 2 2 2 1 1 1 1 1 . 1 3 1 Utility 4 | . . 1 2 3 3 3 3 5 3 4 5 5 5 4 3 3 3 3 3 3 2 3 3 2 2 3 4 4 3 2 8 12 9 Weapon 2 | . 1 1 1 1 2 1 1 2 1 1 1 2 2 1 1 1 1 1 1 . . 1 2 1 1 1 1 . 1 2 3 5 4 Tool/Special . | . . . . . . . . . . . . . . . . . . . . . . . . . . . . . . . . . . Unused Backups 19 | . 2 . 1 . . 2 1 . . 2 . . . 1 . . . . 1 . 1 . . . . . . . . 1 3 1 3 Power 4 | . . . . . . . . . . 1 . . . . . . . . . . 1 . . . . . . . . . 1 . 1 Propulsion 1 | . 1 . . . . . . . . . . . . . . . . . . . . . . . . . . . . . . . . Utility 6 | . . . . . . 1 1 . . . . . . 1 . . . . . . . . . . . . . . . . 1 1 1 Weapon 4 | . 1 . 1 . . . . . . . . . . . . . . . 1 . . . . . . . . . . . 1 . . Tool/Special 4 | . . . . . . 1 . . . 1 . . . . . . . . . . . . . . . . . . . 1 . . 1 Average Slot Usage (%) 84 | . 87 93 97 100 100 100 92 93 85 84 83 78 90 44 43 51 67 70 71 65 76 85 84 85 83 79 79 79 80 79 87 79 80 Engine 3 | . 7 9 10 11 11 11 6 6 6 6 4 . . 2 . . . . . 7 1 . . . . . . . . . . . . Core 2 | . . . . . . . . . . . . . . 1 . . . . . . 4 5 5 4 5 . . . . . 7 7 6 Reactor 1 | . . . . . . . . . . . 1 6 5 . . . . . . . 3 5 5 5 5 4 4 4 4 4 . . . Hover 3 | . . . . . . . . . . . . 13 28 5 . . . . 13 20 4 . . . . . . . . . 4 15 15 Flight 23 | . 22 28 42 44 44 44 39 40 34 33 30 8 3 8 17 17 17 17 10 5 18 21 21 21 20 23 23 23 21 25 19 . . Device 14 | . 18 10 6 . . . 12 13 12 6 6 6 6 5 3 5 5 5 9 6 14 21 21 20 21 18 19 19 20 19 21 30 20 Storage 4 | . . . 4 11 11 11 6 6 6 6 6 6 6 3 . . . . . . . 5 5 5 5 4 4 4 4 4 4 3 5 Processor 9 | . . 4 5 . . . 4 6 6 7 6 6 6 5 15 19 23 23 19 15 13 15 15 15 15 14 14 14 13 12 11 11 14 Hackware 6 | . . . 5 11 11 11 13 13 13 13 13 13 12 2 . . 3 5 5 5 3 5 5 5 5 4 4 4 5 8 4 5 2 Protection 2 | . 4 11 . . . . . . . 2 6 6 5 . . 2 5 5 3 . . . . . . . . . 2 . 5 . 6 Ballistic Gun 2 | . 28 23 1 2 . . . . . . . . . 1 . . . . . . 4 1 . . . . . . . . . . . Impact Weapon 1 | . . 4 11 11 11 11 1 . . . . . . . . . . . . . . . . . . . . . . . . . . Slashing Weapon 2 | . . . . . . . 4 6 5 4 . 4 6 2 3 5 5 5 3 4 5 4 5 5 5 4 3 4 4 2 1 2 1 Special Melee Weapon 1 | . . . 8 1 10 11 1 . . 1 . 1 3 . . . 4 5 3 . . . . . . 3 3 3 3 . . . . Peak Build Rating 311 | 6 7 10 19 25 25 26 65 65 68 73 75 81 77 56 43 43 58 58 93 88 107 117 107 113 109 143 149 149 173 196 297 304 311 Average Rating 127 | 4 6 7 16 21 21 24 58 65 66 65 66 63 69 38 35 40 54 57 76 78 94 107 107 108 108 136 140 142 167 179 247 295 271 On Entrance 83 | . 6 7 9 19 25 21 26 65 65 68 70 68 77 42 28 38 43 57 58 61 88 107 107 107 103 109 141 141 148 159 190 288 296 Avg Prop Armor Cover (%) 4 | 27 22 . . . . . 3 3 1 1 . 2 4 1 . . 11 . 4 9 4 . . . . . . . . . 2 . 4 Naked Turns . | . . . . . . . . . . . . . . . . . . . . . . . . . . . . . . . . . . Heaviest Build 101 | 6 9 8 17 20 20 17 26 26 28 36 36 32 32 26 12 12 12 12 15 10 43 40 37 52 37 63 62 61 70 70 98 94 101 Greatest Support 123 | 3 8 8 20 20 20 21 34 34 35 50 50 52 45 39 15 15 15 15 24 12 45 45 45 45 46 70 71 71 71 71 120 120 123 Greatest Overweight (x) 4 | 1 1 . . . . . . . . 1 1 1 . 4 . . 3 . 1 . . . . 1 . 1 . . . 1 2 . 1 Average Overweight (x) . | . . . . . . . . . . . . . . . . . 1 . . . . . . . . . . . . . . . . Largest Inventory Capacity 25 | 5 5 5 10 10 10 10 10 10 10 10 10 10 10 10 5 5 5 5 5 5 10 10 10 10 10 10 10 10 10 10 25 25 25 Average Capacity 12 | 5 5 5 7 10 10 10 10 10 10 10 10 10 10 8 5 5 5 5 5 5 5 10 10 10 10 10 10 10 10 10 19 25 23 Most Carried 25 | 2 5 5 10 10 10 10 10 10 10 10 10 10 10 10 5 5 5 5 5 5 8 10 10 10 10 10 9 10 10 10 25 25 25 Average Carried 11 | 1 4 5 6 9 9 9 9 10 9 9 8 8 9 6 5 5 4 5 4 4 5 9 10 9 9 9 8 8 8 9 17 24 19 Final Capacity 25 | 5 5 5 10 10 10 10 10 10 10 10 10 10 10 5 5 5 5 5 5 5 10 10 10 10 10 10 10 10 10 10 25 25 5 Final Carried 25 | 2 5 5 10 10 10 10 10 10 10 10 8 9 8 5 5 5 5 5 5 4 8 10 10 10 10 9 8 10 10 9 25 25 2 Class Distribution -------------------- 17% | Hacker-Scout 14% | Scavenger-Ninja 12% | Hacker-Ninja 8% | Scavenger-Mutant 8% | Commander-Sprinter 7% | Scavenger-Sprinter 6% | Mutant 5% | Sprinter 4% | Infiltrator-Ninja 4% | Hacker-Sprinter Dominant Class ---------------- Scavenger-Mutant | -10/Materials Scavenger-Mutant | -10/Mines Sprinter | -9/Materials Sprinter | -9/Storage Commander-Sprinter | -9/Recycling Commander-Sprinter | -9/Scraptown Hacker-Scout | -6/Factory Hacker-Sprinter | -6/Waste Hacker-Scout | -6/Factory Scavenger-Sprinter | -6/Extension Scavenger-Sprinter | -6/Cetus Scavenger-Mutant | -6/Archives Scavenger-Mutant | -6/Hub_04(d) Mutant | -5/Factory Sprinter | -5/Upper Caves Derelict-Sprinter | -5/Upper Caves Derelict-Mutant | -5/Zhirov Derelict-Sprinter | -4/Proximity Caves Scavenger-Sprinter | -4/Factory Mutant | -4/Waste Scavenger-Sprinter | -4/Factory Scavenger-Ninja | -4/Upper Caves Scavenger-Ninja | -4/Upper Caves Scavenger-Ninja | -4/Warlord Scavenger-Ninja | -3/Proximity Caves Infiltrator-Ninja | -3/Research Commander-Ninja | -3/Armory Infiltrator-Ninja | -3/Lab Hacker-Ninja | -2/Research Hacker-Ninja | -2/Quarantine Hacker-Scout | -2/Protoforge Wizard-Ninja | -1/Access Hacker-Sprinter | -1/Command Resources | -11 -10 -10 -9 -9 -9 -9 -6 -6 -6 -6 -6 -6 -6 -5 -5 -5 -5 -4 -4 -4 -4 -4 -4 -4 -3 -3 -3 -3 -2 -2 -2 -1 -1 ----------- Run | Yrd Mat Min Mat Sto Rec Scr Fac Was Fac Ext Cet Arc Hub Fac Upp Upp Zhi Pro Fac Was Fac Upp Upp War Pro Res Arm Lab Res Qua Frg Acc Com Matter Collected 10817 | 290 495 131 255 90 10 20 346 . 53 283 264 189 20 302 30 30 . 31 36 90 277 102 45 . 95 255 . . 185 80 6538 70 205 Remotely 242 | 109 119 . . . . . . . . . . . . . . . . . . . . . . . . . . . . . 14 . . Salvage Created 20824 | 79 547 74 323 478 95 . 809 . 53 441 356 625 424 889 177 . . . 11 . 515 48 . . . 871 . . 276 582 11254 156 1741 Parts 852 | 6 46 5 18 13 2 . 26 . 8 16 16 32 20 36 . . . . 3 . 35 1 . . . 25 . . 8 10 457 6 63 Haulers Intercepted 16 | . 2 . 2 3 . . 1 . . . . . . . . . . . . . 1 . . . . 7 . . . . . . . Recyclers Shooed 3 | . 2 . . 1 . . . . . . . . . . . . . . . . . . . . . . . . . . . . . Parts Field Recycled . | . . . . . . . . . . . . . . . . . . . . . . . . . . . . . . . . . . Retrieved Matter . | . . . . . . . . . . . . . . . . . . . . . . . . . . . . . . . . . . Parts Self-Destructed 3 | . . . . . . . . . . . . . . . . . . 2 . . . 1 . . . . . . . . . . . Prevented . | . . . . . . . . . . . . . . . . . . . . . . . . . . . . . . . . . . Parts Restored 12 | . . . . . . . . . . . . . . . . . . . . . . . . . . . . . . . 12 . . Faulty 12 | . . . . . . . . . . . . . . . . . . . . . . . . . . . . . . . 12 . . Kills | -11 -10 -10 -9 -9 -9 -9 -6 -6 -6 -6 -6 -6 -6 -5 -5 -5 -5 -4 -4 -4 -4 -4 -4 -4 -3 -3 -3 -3 -2 -2 -2 -1 -1 ------- Run | Yrd Mat Min Mat Sto Rec Scr Fac Was Fac Ext Cet Arc Hub Fac Upp Upp Zhi Pro Fac Was Fac Upp Upp War Pro Res Arm Lab Res Qua Frg Acc Com Combat Hostiles Destroyed 249 | . 15 5 7 5 2 . 4 . 1 5 6 4 5 9 . . . . . . 7 . . . . . . . . 1 154 . 19 Melee 57 | . . . 1 1 1 . 4 . 1 4 . 2 5 8 . . . . . . 7 . . . . . . . . . 4 . 19 Guns 23 | . 15 5 . . . . . . . . . 2 . 1 . . . . . . . . . . . . . . . . . . . Cannons 144 | . . . . . . . . . . 1 6 . . . . . . . . . . . . . . . . . . . 137 . . AOE 12 | . . . 6 3 . . . . . . . . . . . . . . . . . . . . . . . . . . 3 . . Classes Destroyed 30 | 2 7 1 . 2 . . 3 . 1 . . . . . 1 . . . . . . . . . . . . . . 1 12 . . Worker 5 | . . . . 1 . . 1 . . . . . 1 . . . . . 1 . . . . . . 1 . . . . . . . Builder 6 | . 1 . . . . . 1 . . . . . . . . . . . . . 2 . . . . 1 . . . . . 1 . Tunneler 5 | 1 . . . . . . . . . . . . . 1 . . . . . . 1 . . . . 2 . . . . . . . Hauler 16 | . 2 . 2 3 . . 1 . . . . . . . . . . . . . 1 . . . . 7 . . . . . . . Recycler 18 | 1 1 . 1 3 . . 3 . . 1 . . 1 4 . . . . . . 1 . . . . . . . 1 . . 1 . Minesweeper 1 | . . . . . . . . . . . . . . . 1 . . . . . . . . . . . . . . . . . . Mechanic 18 | . 1 . 2 . . . 1 . . . . . . 1 . . . . . . . . . . . . . . 1 . 12 . . Operator 21 | . 1 . 1 2 . . 1 . 2 . . 8 1 . . . . . . . 1 . . . . 2 . . . 1 1 . . Drone 4 | . . . . . . . 1 . . . . . . . . . . . . . . . . . . . . . . . 3 . . Watcher 16 | . 3 . 3 . . . 1 . . 1 . . . . . . . . . . . . . . . . . . 2 2 2 . 2 Swarmer 52 | . 12 4 6 3 . . . . . 1 . . 2 8 . . . . . . 6 . . . . . . . . . 10 . . Cutter 3 | . . . . . . . . . 1 . . . . . . . . . . . . . . . . . . . . . . . 2 Grunt 35 | . 3 . 1 1 1 . 1 . . 2 . . . . . . . . . . . . . . . . . . . . 23 . 3 Brawler 5 | . . . . . . . . . . . . . . . . . . . . . . . . . . . . . . . 5 . . Duelist 8 | . . . . . . . . . . . . . . . . . . . . . . . . . . . . . . . 7 . 1 Protector 8 | . . . . . . . . . . . . . . . . . . . . . . . . . . . . . . . 7 . 1 Researcher 3 | . . . . . . . . . . . . . . . . . . . . . . . . . . . . . . . 3 . . Sentry 22 | . . . . 1 1 . . . . 1 . 4 3 1 . . . . . . . . . . . . . . . . 11 . . Demolisher 1 | . . 1 . . . . . . . . . . . . . . . . . . . . . . . . . . . . . . . Specialist 2 | . . . . . . . . . . . . . . . . . . . . . . . . . . . . . . . 2 . . Hunter 20 | . . . . . . . 1 . . 1 . . . . . . . . . . . . . . . . . . . . 18 . . Programmer 23 | . . . . . . . 1 . . . . . . . . . . . . . 1 . . . . . . . . . 17 . 4 Cetus Guard 6 | . . . . . . . . . . . 6 . . . . . . . . . . . . . . . . . . . . . . M Guard 1 | . . . . . . . . . . . . . . . . . . . . . . . . . . . . . . . . . 1 Hotshot 2 | . . . . . . . . . . . . . . . . . . . . . . . . . . . . . . . 2 . . Decapitator 6 | . . . . . . . . . . . . . . . . . . . . . . . . . . . . . . . 6 . . Immortal 3 | . . . . . . . . . . . . . . . . . . . . . . . . . . . . . . . 3 . . Combat Programmer 2 | . . . . . . . . . . . . . . . . . . . . . . . . . . . . . . . . . 2 Striker 16 | . . . . . . . . . . . . . . . . . . . . . . . . . . . . . . . 14 . 2 Executioner 20 | . . . . . . . . . . . . . . . . . . . . . . . . . . . . . . . 18 . 2 Alpha 7 3 | . . . . . . . . . . . . . . . . . . . . . . . . . . . . . . . 3 . . Fortress 1 | . . . . . . . . . . . . . . . . . . . . . . . . . . . . . . 1 . . . V-Series 4 | . . . . . . . . . . . . . . . . . . . . . . . . . . . . . . . 4 . . Elite 1 | . . . . . . . . . . . . . . . . . . . . . . . . . . . . . . . 1 . . Scrapoid 2 | . . . . . . . . . . . . . . . . . . . . . . . . . . . . . . . 2 . . Scraphulk 1 | . . . . . . . . . . . . . . . . . . . . . . . . . . . . . . . 1 . . Packrat 1 | . . . . . . . . . . . . . . . 1 . . . . . . . . . . . . . . . . . . Best Kill Streak 23 | 2 9 3 9 5 1 . 4 . 1 1 3 4 2 4 1 . . . 1 . 3 . . . . 3 . . 1 1 23 1 7 Combat Bots Only 18 | . 9 3 6 3 1 . 1 . 1 1 3 1 2 4 . . . . . . 3 . . . . . . . . 1 18 . 6 Max Kills in Single Turn 3 | 1 1 1 3 2 1 . 2 . 1 1 1 1 1 1 1 . . . 1 . 1 . . . . 1 . . 1 1 2 1 1 Gunslinging . | . . . . . . . . . . . . . . . . . . . . . . . . . . . . . . . . . . Exploded 2 | . . . 2 2 . . . . . . . . . . . . . . . . . . . . . . . . . . 1 . . Melee 1 | . . . 1 1 1 . 1 . 1 1 . 1 1 1 . . . . . . 1 . . . . . . . . . 1 . 1 Uniques/NPCs Destroyed 1 | . . . . . . . . . . . . . . . . . . . . . . . . . . . . . . . . . 1 MAIN.C Shell (-1/Command) Combat | -11 -10 -10 -9 -9 -9 -9 -6 -6 -6 -6 -6 -6 -6 -5 -5 -5 -5 -4 -4 -4 -4 -4 -4 -4 -3 -3 -3 -3 -2 -2 -2 -1 -1 -------- Run | Yrd Mat Min Mat Sto Rec Scr Fac Was Fac Ext Cet Arc Hub Fac Upp Upp Zhi Pro Fac Was Fac Upp Upp War Pro Res Arm Lab Res Qua Frg Acc Com Hostile Shots Fired 1705 | . 65 31 20 22 . . 133 . 29 94 18 31 126 184 . 2 . 7 91 . 70 2 2 13 4 8 15 . 11 14 289 8 416 Missed 738 | . 22 12 11 12 . . 68 . 16 49 7 9 49 64 . 1 . 3 46 . 30 1 1 8 2 4 8 . 5 6 154 8 142 Intercepted 21 | . . . . . . . . . . . . . . . . . . . . . . . . . . . . . . . 2 . 19 Deflected 4 | . . . . . . . . . . . . . . . . . . . . . . . . . . . . . . . 3 . 1 Hits 967 | . 43 19 9 10 . . 65 . 13 45 11 22 77 120 . 1 . 4 45 . 40 1 1 5 2 4 7 . 6 8 135 . 274 Melee 28 | . . . . 1 . . . . . . . . . . . . . . . . . . . . . . . . . . 4 . 23 Projectile 939 | . 43 19 9 9 . . 65 . 13 45 11 22 77 120 . 1 . 4 45 . 40 1 1 5 2 4 7 . 6 8 131 . 251 AOE 14 | . . . . . . . . . . . . . . . . . . . 2 . . . . . . 1 . . . . 1 . 10 Critical Strikes 39 | . . . . . . . 1 . . . 3 1 1 2 . . . . 2 . . . . . . . . . 1 . 9 . 19 Actively Blocked 23 | . . . . . . . . . . . . . . . . . . . 2 . . . . . . . . . . . 2 . 19 Part Disruptions 11 | . . . . . . . . . . . . . 1 . . . . . . . . . . . . . . . . . . . 10 Damage Taken 20124 | . 357 175 110 170 . . 739 . 42 555 308 550 1258 1947 . 21 . 55 912 . 828 23 24 103 20 360 159 . 151 263 3664 . 7330 Core 4782 | . 49 39 35 47 . . 147 . 24 85 55 97 338 981 . . . 18 595 . 144 23 . 41 . 124 . . 41 48 233 . 1618 Absorbed by Shields 1082 | . . . . . . . . . . 55 . . . . . . . . . . . . . . . . . . . . 40 . 987 Redirected to Shielding 284 | . . . . . . . . . . . . . . . . . . . 31 . . . . . . . . . . . 191 . 62 Ignored by Resistances 1588 | . . . . . . . . . . . . . . . . . . . . . . . . . . . . . . . 62 . 1526 Regen/Repaired (Parts) 3880 | . 28 . . 23 . . 152 . 94 132 78 112 140 62 . . . . 15 31 4 . . 14 . . . . . 106 1111 . 1778 Core Remaining (%) 54 | 100 . 64 . . . 79 . . . . . . 12 . . . . . . . . . . . 30 . . 85 . . 66 . . Volleys Fired 762 | 5 75 8 6 2 . . 3 . 2 3 27 16 . 14 . . . . . . . 12 . 1 . . 7 . . 7 568 2 4 Largest 2 | 2 2 2 1 1 . . 1 . 1 1 1 1 . 2 . . . . . . . 1 . 1 . . 1 . . 1 2 1 2 Hottest 260 | 40 40 40 30 30 . . 35 . 105 48 48 35 . 58 . . . . . . . 56 . 260 . . . . . 100 140 70 140 Shots Fired 1060 | 10 150 16 6 2 . . 3 . 2 3 27 16 . 28 . . . . . . . 12 . 1 . . 7 . . 7 761 2 7 Gun 220 | 10 150 16 . . . . . . . . . 16 . 28 . . . . . . . . . . . . . . . . . . . Cannon 816 | . . . . . . . 3 . 2 1 27 . . . . . . . . . . 9 . . . . . . . 7 758 2 7 Launcher 12 | . . . 6 2 . . . . . . . . . . . . . . . . . . . 1 . . . . . . 3 . . Special 12 | . . . . . . . . . . 2 . . . . . . . . . . . 3 . . . . 7 . . . . . . Kinetic 851 | 10 150 16 . . . . . . . 1 27 16 . 28 . . . . . . . 9 . . . . . . . . 585 2 7 Thermal 186 | . . . . . . . 3 . 2 . . . . . . . . . . . . . . 1 . . . . . 7 173 . . Explosive 11 | . . . 6 2 . . . . . . . . . . . . . . . . . . . . . . . . . . 3 . . Electromagnetic . | . . . . . . . . . . . . . . . . . . . . . . . . . . . . . . . . . . Robot Hit Streak 20 | 5 5 9 . . . . . . . 4 4 6 . 8 . . . . . . . . . . . . . . . . 20 . 10 Robot Miss Streak 6 | 2 4 2 . . . . . . . . 6 2 . 2 . . . . . . . . . . . . . . . . 5 . . Penetration Max 2 | . . . . . . . . . . . 1 . . . . . . . . . . . . . . . . . . . 2 . 1 Secondary Targets 4 | . 1 3 . . . . . . . . . . . . . . . . . . . . . . . . . . . . . . . Max Gunslinging Chain 1 | . 1 1 . . . . . . . . . . . . . . . . . . . . . . . . . . . . . . . Capacitor 112 | . . . . . . . . . . . . . . . . . . . . . . . . . . . . . . . 112 . . Shots Hit Robots 1010 | 7 73 11 8 16 15 . 20 . 5 33 13 33 16 45 8 . . . 2 . 21 2 . . . 43 21 . 9 5 442 3 159 Core Hits 532 | 3 37 7 16 8 . . 8 . 2 7 9 16 9 18 2 . . . . . 10 1 . . . 14 1 . 3 5 291 1 64 Critical Kills 67 | . . . 1 1 . . . . . 1 5 1 . . . . . . . . . . . . . . . . . 1 57 . . Critical Parts Destroyed 89 | . 1 . 1 1 1 . . . . . 7 . . 1 . . . . . . . . . . . . . . . . 77 . . Critical Strikes 244 | . 1 . 2 2 1 . . . . 2 14 1 3 2 . . . . . . 1 . . . . 8 1 . 1 1 144 . 60 Meltdown 11 | . . . . . . . . . . . . . . . . . . . . . . . . . . . . . . 1 10 . . Destroy 153 | . 1 . . . . . . . . 1 14 1 . 1 . . . . . . . . . . . . . . . . 134 . 1 Smash 5 | . . . 2 2 1 . . . . . . . . . . . . . . . . . . . . . . . . . . . . Sever 17 | . . . . . . . . . . . . . 3 . . . . . . . 1 . . . . 8 1 . 1 . . . 3 Impale 58 | . . . . . . . . . . 1 . . . 1 . . . . . . . . . . . . . . . . . . 56 Melee Attacks 778 | . . 3 21 24 15 . 71 . 23 36 . 28 33 35 9 2 . 1 3 . 64 6 1 . 3 69 34 7 19 29 65 16 161 Impact 70 | . . 3 21 24 2 . 19 . . . . . . . . . . . . . . . . . . . . . . . . . 1 Slashing 459 | . . . . . . . 50 . 23 8 . 27 33 13 6 2 . 1 2 . 64 6 1 . 3 69 16 7 19 29 42 16 22 Piercing 198 | . . . . . . . . . . 12 . . . 22 3 . . . . . . . . . . . . . . . 23 . 138 Sneak Attacks 130 | . . . 5 8 15 . 10 . 2 19 . 10 3 5 2 . . . 2 . 7 . . . . 12 19 . 2 . 6 3 . Combat Hostiles 11 | . . . . . 1 . 2 . 1 3 . . 1 . . . . . . . 1 . . . . . 1 . . . 1 . . Follow-up Attacks 12 | . . . . . . . . . . . . . . . . . . . . . . . . . . . . . . . . . 12 Martial Strikes 36 | . . . . . . . . . . . . . . . . . . . . . . . . . . . . . . . . . 36 Damage Inflicted 56532 | 84 803 120 1216 1325 225 . 1457 . 467 897 545 1696 881 1502 465 . . . 100 . 1271 217 . . . 2570 193 . 532 608 30751 482 8125 Guns 1654 | 84 803 78 . . . . . . . . . 318 . 371 . . . . . . . . . . . . . . . . . . . Cannons 29983 | . . . . . . . . . . 12 545 . . . . . . . . . . . . . . . . . . 140 28883 . 403 Explosions 1087 | . . . 566 179 . . . . . . . . . . . . . . . . . . . . . . . . . . 283 . 59 Melee 23790 | . . 42 650 1146 225 . 1457 . 467 885 . 1378 881 1113 465 . . . 100 . 1271 217 . . . 2570 193 . 532 468 1585 482 7663 Ramming 18 | . . . . . . . . . . . . . . 18 . . . . . . . . . . . . . . . . . . . Kinetic 24686 | 84 803 78 . . . . . . . 12 545 318 . 371 . . . . . . . . . . . . . . . . 22072 . 403 Thermal 6951 | . . . . . . . . . . . . . . . . . . . . . . . . . . . . . . 140 6811 . . Explosive 1028 | . . . 566 179 . . . . . . . . . . . . . . . . . . . . . . . . . . 283 . . Electromagnetic . | . . . . . . . . . . . . . . . . . . . . . . . . . . . . . . . . . . Impact 2606 | . . 42 650 1146 225 . 394 . . . . . . . . . . . . . . . . . . . . . . . . . 149 Slashing 13429 | . . . . . . . 1063 . 467 415 . 1378 881 423 345 . . . 100 . 1271 217 . . . 2570 193 . 532 468 1585 482 1039 Piercing 7814 | . . . . . . . . . . 470 . . . 690 120 . . . . . . . . . . . . . . . . . 6534 Highest Corruption 8 | . . . . . . . 2 . . . . . 8 . . . . . 3 3 3 . . . . . . . . 1 5 . 6 Average Corruption 2 | . . . . . . . 1 . . . . . 6 . . . . . 1 3 2 . . . . . . . . 1 3 . 3 Corruption Purged 10 | . . . . . . . 3 . . . . . . . . . . . . . 3 . . . . . . . . 1 3 . . Corruption Blocked . | . . . . . . . . . . . . . . . . . . . . . . . . . . . . . . . . . . Effects 48 | . . . . . . . 1 . . . . . 1 . . . . . . 2 6 . . . . . . . . 2 34 . 2 Message Errors 7 | . . . . . . . . . . . . . . . . . . . . . 1 . . . . . . . . . 6 . . Matter Fused 16 | . . . . . . . 1 . . . . . . . . . . . . 2 3 . . . . . . . . . 9 . 1 Heat Flow Errors 4 | . . . . . . . . . . . . . 1 . . . . . . . 1 . . . . . . . . . 2 . . Energy Discharges 6 | . . . . . . . . . . . . . . . . . . . . . 1 . . . . . . . . . 4 . 1 Parts Rejected 4 | . . . . . . . . . . . . . . . . . . . . . . . . . . . . . . . 4 . . Data Loss (minor) 4 | . . . . . . . . . . . . . . . . . . . . . . . . . . . . . . 2 2 . . Data Loss (major) 2 | . . . . . . . . . . . . . . . . . . . . . . . . . . . . . . . 2 . . Weapon Failures 5 | . . . . . . . . . . . . . . . . . . . . . . . . . . . . . . . 5 . . Overload Shots 1 | . . . . . . . . . 1 . . . . . . . . . . . . . . . . . . . . . . . . Overflow Damage 5097 | . . . 286 385 175 . 410 . 196 159 16 282 15 173 234 . . . 60 . 300 78 . . . 224 44 . 126 114 1255 193 372 Projectiles 860 | . . . . . . . 42 . . . 16 . . . . . . . . . . . . . . . . . . . 802 . . Explosions 30 | . . . 27 3 . . . . . . . . . . . . . . . . . . . . . . . . . . . . . Melee 4207 | . . . 259 382 175 . 368 . 196 159 . 282 15 173 234 . . . 60 . 300 78 . . . 224 44 . 126 114 453 193 372 Knockbacks 84 | . . . 1 2 . . 2 . . . . . . . . . . . . . . . . . . . . . . . 78 . 1 Impact 5 | . . . 1 2 . . 1 . . . . . . . . . . . . . . . . . . . . . . . . . 1 Kinetic 67 | . . . . . . . . . . . . . . . . . . . . . . . . . . . . . . . 67 . . Secondary 12 | . . . . . . . 1 . . . . . . . . . . . . . . . . . . . . . . . 11 . . Self-Inflicted Damage 13 | . . . . . . . . . . . . . . 9 . . . . . . . . . . . . . . . . 4 . . Shots 1 | . . . . . . . . . . . . . . . . . . . . . . . . . . . . . . . 1 . . Rammed 1 | . . . . . . . . . . . . . . 1 . . . . . . . . . . . . . . . . . . . Targets Rammed 1 | . . . . . . . . . . . . . . 1 . . . . . . . . . . . . . . . . . . . Kicked . | . . . . . . . . . . . . . . . . . . . . . . . . . . . . . . . . . . Crushed . | . . . . . . . . . . . . . . . . . . . . . . . . . . . . . . . . . . Highest Temperature 382 | . 14 12 6 6 . . 265 50 56 35 145 24 155 4 . . . . . . 111 . . 190 . . . . 382 183 162 23 54 Average Temperature 33 | . 6 6 3 6 . . 32 28 7 10 61 9 70 3 . . . . . . 63 . . 108 . . . . 382 56 19 19 26 Received Heat Transfer 1765 | . 24 30 27 36 . . 135 . . 147 . 108 132 99 . . . . 72 . 21 12 9 21 . 9 . . 428 . 276 . 179 Siege Activations . | . . . . . . . . . . . . . . . . . . . . . . . . . . . . . . . . . . Martial Activations . | . . . . . . . . . . . . . . . . . . . . . . . . . . . . . . . . . . Shielding Activations . | . . . . . . . . . . . . . . . . . . . . . . . . . . . . . . . . . . Robots Disrupted . | . . . . . . . . . . . . . . . . . . . . . . . . . . . . . . . . . . Combat Hostiles . | . . . . . . . . . . . . . . . . . . . . . . . . . . . . . . . . . . Robots Corrupted 9 | . . . 1 4 1 . 3 . . . . . . . . . . . . . . . . . . . . . . . . . . Combat Hostiles 2 | . . . . 1 1 . . . . . . . . . . . . . . . . . . . . . . . . . . . . Parts Fried 18 | . . . 1 6 3 . 7 . . . . . . . . . . . . . . . . . . . . . . . 1 . . Impact Corruptions 28 | . . . 4 11 3 . 8 . . . . . . . . . . . . . . . . . . . . . . . 2 . . Robots Melted 11 | . . . . . . . . . . . . . . . . . . . . . . . . . . . . . . 1 10 . . Combat Hostiles 11 | . . . . . . . . . . . . . . . . . . . . . . . . . . . . . . 1 10 . . Parts Melted 25 | . . . . 1 . . . . . 1 . . . . . . . . . . . . . . . . . . . 2 21 . . Heat Transferred 6021 | . . . . . . . . . . . . . . . . . . . . . . . . . . . . . . 106 5915 . . Parts Sabotaged 3 | . . . . . . . . . . . . . . . . . . . . . . . . . . . . . . . 3 . . Parts Stolen . | . . . . . . . . . . . . . . . . . . . . . . . . . . . . . . . . . . Parts Stripped . | . . . . . . . . . . . . . . . . . . . . . . . . . . . . . . . . . . Power Chain Reactions . | . . . . . . . . . . . . . . . . . . . . . . . . . . . . . . . . . . Alert | -11 -10 -10 -9 -9 -9 -9 -6 -6 -6 -6 -6 -6 -6 -5 -5 -5 -5 -4 -4 -4 -4 -4 -4 -4 -3 -3 -3 -3 -2 -2 -2 -1 -1 ------- Run | Yrd Mat Min Mat Sto Rec Scr Fac Was Fac Ext Cet Arc Hub Fac Upp Upp Zhi Pro Fac Was Fac Upp Upp War Pro Res Arm Lab Res Qua Frg Acc Com Maximum Alert Level 5 | . 1 1 2 3 1 . 2 1 1 1 1 . . . . . . . 2 1 4 . . . . 2 1 . . . 5 5 5 Low Security (%) 34 | 100 25 72 14 4 23 . 74 53 86 20 10 100 100 100 . . . . 42 68 15 . . . . . 40 . 100 100 9 . . Level 1 27 | . 74 27 80 29 76 . 21 46 13 79 89 . . . . . . . 43 31 31 . . . . 65 59 . . . 4 . . Level 2 11 | . . . 5 56 . . 3 . . . . . . . . . . . 14 . 5 . . . . 34 . . . . 21 . . Level 3 7 | . . . . 9 . . . . . . . . . . . . . . . . 35 . . . . . . . . . 17 . . Level 4 5 | . . . . . . . . . . . . . . . . . . . . . 11 . . . . . . . . . 7 . 72 Level 5 14 | . . . . . . . . . . . . . . . . . . . . . . . . . . . . . . . 39 100 27 High Security . | . . . . . . . . . . . . . . . . . . . . . . . . . . . . . . . . . . Max Security . | . . . . . . . . . . . . . . . . . . . . . . . . . . . . . . . . . . Peak Influence 4540 | 10 281 234 416 762 358 . 546 206 232 391 250 109 176 162 . . . . 443 212 1127 . . . . 486 373 . 30 132 4540 2742 1625 Initial 2724 | . . 90 60 175 271 . . 191 144 7 188 87 . 35 . . . . 2 151 120 . . . . 333 196 . . . 42 2724 1419 Average 645 | 2 198 169 263 460 255 . 160 197 104 243 222 36 93 66 . . . . 200 188 616 . . . . 383 253 . 3 75 1363 2463 1515 Influence Increases 18079 | 10 554 290 654 953 137 . 1356 15 330 926 200 123 342 456 10 15 . 45 603 111 1735 55 . 30 90 743 452 . 102 411 6018 394 919 Destroy 0b10 Robot/C 6640 | . 300 160 140 300 40 . 80 . 60 520 160 80 100 180 . . . . 100 . 580 . . . . . 220 . 40 20 3200 . 360 Destroy 0b10 Robot/NC 710 | 10 45 . 45 45 . . 50 . 10 40 10 40 15 30 10 . . . 15 . 70 10 . . . 65 . . 25 15 135 10 15 Destroy Leader 1046 | . 60 30 30 86 . . 34 . 10 64 . . 40 30 . . . . 12 . 92 . . . . 12 30 . 14 4 434 . 64 Allied During Kill 572 | . . 9 . 138 1 . 1 . . 141 24 1 . . . . . . 11 . 142 . . . . . 68 . 2 . 34 . . Trap Triggered on 0b10 70 | . . . 40 . . . 30 . . . . . . . . . . . . . . . . . . . . . . . . . . Successful Hack 805 | . 58 . 43 18 6 . 130 . 102 41 . . 12 30 . . . . 19 . 88 . . . . 68 28 . . 81 72 . 9 Select Force Hacks 380 | . 30 . 60 60 90 . 80 . . . . . . . . . . . . . . . . . . 60 . . . . . . . Disable Machine 930 | . . . 15 30 . . . . 30 . . . 45 . . . . . . . 120 . . . . . 75 . . 120 480 15 . Anti-Garrison Action 400 | . . . . . . . . . . . . . . . . . . . 200 . . . . . . 200 . . . . . . . Destroy Structure 1491 | . 1 1 56 21 . . 51 . 28 15 6 2 10 6 . . . . 36 96 208 . . . . 38 16 . 21 36 768 54 21 Advance Influence 300 | . . . . . . . . . . . . . . . . . . . . . . . . . . 300 . . . . . . . Partial Spotted 840 | . . 15 165 60 . . 120 15 15 75 . . 45 30 . . . . 15 15 90 . . . . . 15 . . 60 60 15 30 Lose Combat Pursuer 3195 | . 60 75 60 195 . . 780 . 75 30 . . 75 150 . 15 . 45 195 . 345 45 . 30 90 . . . . 75 435 . 420 Miscellaneous 700 | . . . . . . . . . . . . . . . . . . . . . . . . . . . . . . . 400 300 . Influence Decreases 16227 | 10 321 367 394 671 689 146 810 355 521 604 319 341 270 375 97 73 8 40 175 372 792 533 182 465 60 419 544 282 102 336 1553 2716 1285 Entered New Map 6345 | . . 143 96 241 427 146 . 355 62 8 149 131 . 37 57 13 8 . 3 282 52 413 122 455 20 17 178 282 . . 33 1816 799 Time Decay 5873 | 10 311 214 278 230 262 . 423 . 249 315 100 140 160 186 40 50 . 30 82 90 380 120 60 . 40 392 206 . 53 326 770 150 206 Lost Part 1011 | . 10 10 10 . . . 30 . . 40 30 50 110 152 . . . . 60 . 90 . . 10 . 10 . . 9 . 110 . 280 Lost Ally 1264 | . . . 10 200 . . 123 . 60 241 40 20 . . . 10 . 10 30 . 270 . . . . . 160 . 40 10 40 . . Purge Threat 1734 | . . . . . . . 234 . 150 . . . . . . . . . . . . . . . . . . . . . 600 750 . Squads Dispatched 111 | . 2 1 2 4 . . 20 . 12 3 . . 1 1 . . . . 7 . 16 . . . . 12 6 . 3 1 9 5 6 Investigation 67 | . 1 1 2 2 . . 16 . 7 2 . . . 1 . . . . 6 . 9 . . . . 9 2 . 1 . 5 1 2 Extermination 16 | . . . . . . . 3 . 2 . . . . . . . . . . . 3 . . . . 1 2 . 1 1 1 1 1 Reinforcement 21 | . 1 . . 1 . . 1 . 3 1 . . 1 . . . . . 1 . 3 . . . . 2 2 . 1 . 3 1 . Assault 6 | . . . . 1 . . . . . . . . . . . . . . . . . . . . . . . . . . . 2 3 Garrison 1 | . . . . . . . . . . . . . . . . . . . . . 1 . . . . . . . . . . . . Intercept . | . . . . . . . . . . . . . . . . . . . . . . . . . . . . . . . . . . Searches Triggered . | . . . . . . . . . . . . . . . . . . . . . . . . . . . . . . . . . . Construction Impeded 2 | . . . . . . . . . . 1 . . . . . . . . 1 . . . . . . . . . . . . . . Haulers Reinforced 1 | . . . . . . . . . . . . . . . . . . . . . . . . . . 1 . . . . . . . Active Scanning Responses . | . . . . . . . . . . . . . . . . . . . . . . . . . . . . . . . . . . Cargo Convoy Interrupts . | . . . . . . . . . . . . . . . . . . . . . . . . . . . . . . . . . . Stealth | -11 -10 -10 -9 -9 -9 -9 -6 -6 -6 -6 -6 -6 -6 -5 -5 -5 -5 -4 -4 -4 -4 -4 -4 -4 -3 -3 -3 -3 -2 -2 -2 -1 -1 --------- Run | Yrd Mat Min Mat Sto Rec Scr Fac Was Fac Ext Cet Arc Hub Fac Upp Upp Zhi Pro Fac Was Fac Upp Upp War Pro Res Arm Lab Res Qua Frg Acc Com Distress Signals 43 | . 2 . 2 3 . . 2 . 1 1 2 . 3 . . . . 1 3 . 3 . . . . 8 . . . . 10 . 2 Communications Jammed 14 | . . . . . . . . . . . . . . . . . . . . . . . . . . 4 . . 10 . . . . Distress Signals 14 | . . . . . . . . . . . . . . . . . . . . . . . . . . 4 . . 10 . . . . Times Spotted 808 | . 33 19 23 32 . . 57 1 13 32 9 10 25 22 . 1 . 6 30 4 52 3 1 10 7 17 27 . 14 17 290 2 51 Peak Tracking Total 43 | . 9 5 8 12 . . 11 1 6 6 5 1 10 8 . 1 . 6 13 2 11 4 1 10 6 4 8 . 7 3 14 1 43 Tactical Retreats 121 | . 4 4 2 6 . . 19 . 4 1 . . 4 5 . 1 . 1 6 . 13 1 . 1 1 4 4 . 4 6 24 . 6 ECM-based Alert Blocks 53 | . 6 5 . . . . . . . . . . . . . . . . . . . . . . . 9 13 . 7 3 10 . . Traps | -11 -10 -10 -9 -9 -9 -9 -6 -6 -6 -6 -6 -6 -6 -5 -5 -5 -5 -4 -4 -4 -4 -4 -4 -4 -3 -3 -3 -3 -2 -2 -2 -1 -1 ------- Run | Yrd Mat Min Mat Sto Rec Scr Fac Was Fac Ext Cet Arc Hub Fac Upp Upp Zhi Pro Fac Was Fac Upp Upp War Pro Res Arm Lab Res Qua Frg Acc Com Traps Triggered 23 | . . . . 1 . . 1 . 1 . . . . . . . . . 1 . 1 . . . . 3 . . . . 12 3 . Indirectly . | . . . . . . . . . . . . . . . . . . . . . . . . . . . . . . . . . . Trap Hack Attempts 164 | . . . 131 . . . . . . . . . . . . . . . . . . . . . . 7 . . . . 26 . . Triggered 1 | . . . 1 . . . . . . . . . . . . . . . . . . . . . . . . . . . . . . Disarmed . | . . . . . . . . . . . . . . . . . . . . . . . . . . . . . . . . . . Reprogrammed 17 | . . . 9 . . . 4 . . . . . . . . . . . . . . . . . . 2 . . . . 2 . . Reused 7 | . . . 4 . . . 3 . . . . . . . . . . . . . . . . . . . . . . . . . . Traps Extracted 26 | . . . 8 . . . . . . . . . . . . . . . . . . . . . . 2 . . . . 16 . . Installed 26 | . . . 4 . . . . . . . . . . . . . . . . . . . . . . . . . . . 22 . . Triggered 7 | . . . 4 . . . 3 . . . . . . . . . . . . . . . . . . . . . . . . . . Most Traps Carried 6 | . . . 4 4 4 4 4 4 4 4 4 4 4 4 4 4 4 4 4 4 4 4 4 4 4 6 6 6 6 6 6 . . Machines | -11 -10 -10 -9 -9 -9 -9 -6 -6 -6 -6 -6 -6 -6 -5 -5 -5 -5 -4 -4 -4 -4 -4 -4 -4 -3 -3 -3 -3 -2 -2 -2 -1 -1 ---------- Run | Yrd Mat Min Mat Sto Rec Scr Fac Was Fac Ext Cet Arc Hub Fac Upp Upp Zhi Pro Fac Was Fac Upp Upp War Pro Res Arm Lab Res Qua Frg Acc Com Machines Disabled 69 | . . . 1 2 . . . . 2 . . . 3 . . . . . . . 8 1 . 1 . . 5 1 . 8 36 1 . Max in Single Turn 1 | . . . 1 1 . . . . 1 . . . 1 . . . . . . . 1 1 . 1 . . 1 1 . 1 1 1 . Garrison Access 9 | . . . . . . . 4 . . . . . 1 . . . . . 1 . 1 . . . . 1 . . . . 1 . . Network Hub 2 | . . . . . . . . . . . . . 2 . . . . . . . . . . . . . . . . . . . . Machines Repaired . | . . . . . . . . . . . . . . . . . . . . . . . . . . . . . . . . . . Machines Dismantled 3 | . . . . . . . . . 1 . . . 2 . . . . . . . . . . . . . . . . . . . . Machines Sabotaged . | . . . . . . . . . . . . . . . . . . . . . . . . . . . . . . . . . . Overloaded Fab Kills 4 | . . . . . . . 4 . . . . . . . . . . . . . . . . . . . . . . . . . . Hacking | -11 -10 -10 -9 -9 -9 -9 -6 -6 -6 -6 -6 -6 -6 -5 -5 -5 -5 -4 -4 -4 -4 -4 -4 -4 -3 -3 -3 -3 -2 -2 -2 -1 -1 --------- Run | Yrd Mat Min Mat Sto Rec Scr Fac Was Fac Ext Cet Arc Hub Fac Upp Upp Zhi Pro Fac Was Fac Upp Upp War Pro Res Arm Lab Res Qua Frg Acc Com Machines Accessed 239 | . 11 1 14 14 9 4 39 . 25 11 . . 9 5 1 . 4 . 9 . 24 2 . 1 . 17 7 . 2 6 15 6 3 Terminals 138 | . 8 . 10 11 6 . 15 . 13 9 . . 8 . . . . . 4 . 12 . . . . 8 6 . 2 6 11 6 3 Fabricators 11 | . . . . . . . 5 . 3 . . . . 1 . . . . . . 2 . . . . . . . . . . . . Repair Stations 11 | . 1 . . 1 . . 4 . 1 . . . . 3 . . . . 1 . . . . . . . . . . . . . . Recycling Units 44 | . 2 . 2 2 3 . 8 . 6 2 . . . 1 . . . . 3 . 7 . . . . 4 1 . . . 3 . . Scanalyzers 12 | . . . 2 . . . 3 . 2 . . . . . . . . . . . 1 . . . . 4 . . . . . . . Garrison Access 10 | . . . . . . . 4 . . . . . 1 . . . . . 1 . 2 . . . . 1 . . . . 1 . . Total Hacks 659 | . 40 1 40 33 23 33 88 . 48 21 . . 20 12 1 . 17 . 20 . 62 5 . 1 . 71 19 . 5 25 52 16 6 Successful 417 | . 26 1 23 24 16 33 65 . 30 12 . . 11 5 1 . 17 . 13 . 39 5 . 1 . 23 9 . 1 9 32 15 6 Failed 239 | . 14 . 16 9 6 . 23 . 17 9 . . 9 7 . . . . 7 . 23 . . . . 48 10 . 4 16 20 1 . Catastrophic 31 | . 1 . 1 1 . . 1 . 3 . . . 2 2 . . . . . . 3 . . . . 8 2 . 3 1 2 1 . Database Lockouts 3 | . . . 1 . 1 . . . 1 . . . . . . . . . . . . . . . . . . . . . . . . Manual 411 | . 30 . 28 23 15 . 41 . 32 15 . . 14 1 . . . . 18 . 38 1 . . . 52 18 . 5 25 47 3 5 Terminals 426 | . 30 . 30 29 20 . 45 . 30 18 . . 19 . . . . . 13 . 41 . . . . 38 18 . 5 25 43 16 6 Fabricators 22 | . . . . . . . 9 . 7 . . . . 2 . . . . . . 4 . . . . . . . . . . . . Repair Stations 28 | . 6 . . 2 . . 8 . 2 . . . . 9 . . . . 1 . . . . . . . . . . . . . . Recycling Units 62 | . 4 . 3 2 3 . 8 . 6 3 . . . 1 . . . . 5 . 9 . . . . 9 1 . . . 8 . . Scanalyzers 48 | . . . 7 . . . 12 . 3 . . . . . . . . . . . 5 . . . . 21 . . . . . . . Garrison Access 15 | . . . . . . . 6 . . . . . 1 . . . . . 1 . 3 . . . . 3 . . . . 1 . . Terminal Hacks 163 | . 8 1 3 9 6 33 12 . 6 4 . . 5 . 1 . 17 . 2 . 12 5 . 1 . 4 2 . . 1 13 14 4 Record 42 | . . . . . . 32 . . . . . . . . . . 5 . . . . 4 . . . . . . . . 1 . . Part Schematic 12 | . 2 . . 1 . . 2 . 1 . . . 1 . . . 4 . 1 . . . . . . . . . . . . . . Robot Schematic 1 | . . . . . . . 1 . . . . . . . . . . . . . . . . . . . . . . . . . . Robot Analysis 9 | . 3 . . . 1 . . . 1 . . . . . . . 4 . . . . . . . . . . . . . . . . Prototype ID Bank 15 | . 1 . 2 1 . . 1 . 2 . . . 1 . . . 4 . . . 2 . . . . 1 . . . . . . . Open Door 16 | . . 1 . 3 . . . . 1 4 . . . . 1 . . . . . . 1 . 1 . . . . . . . 3 1 Branch Access Points 2 | . . . . . . . . . . . . . . . . . . . . . . . . . . 1 . . . . . 1 . Terminal Index 9 | . . . . . . . 1 . . . . . 1 . . . . . 1 . 1 . . . . 1 1 . . 1 . . 2 Recycling Unit Index 2 | . . . . . . . . . . . . . . . . . . . . . . . . . . 1 . . . . 1 . . Alert Level 2 | . . . . . . . . . . . . . . . . . . . . . 1 . . . . . . . . . 1 . . Unreport Threat 19 | . . . . . . . 2 . 1 . . . . . . . . . . . . . . . . . . . . . 8 8 . Locate Traps 4 | . 1 . . . . . 1 . . . . . 1 . . . . . . . 1 . . . . . . . . . . . . Reprogram Traps 1 | . . . . . . . 1 . . . . . . . . . . . . . . . . . . . . . . . . . . Maintenance Status 1 | . . . . . 1 . . . . . . . . . . . . . . . . . . . . . . . . . . . . Transport Status 1 | . . . . . 1 . . . . . . . . . . . . . . . . . . . . . . . . . . . . Recall Extermination 1 | . . . . . . . 1 . . . . . . . . . . . . . . . . . . . . . . . . . . Recall Reinforcements 1 | . . . . . . . . . . . . . . . . . . . . . . . . . . . . . . . . 1 . Hauler Manifests 1 | . . . . . 1 . . . . . . . . . . . . . . . . . . . . . . . . . . . . Registered Components 3 | . . . . 1 . . 1 . . . . . . . . . . . . . 1 . . . . . . . . . . . . Zone Layout 19 | . 1 . 1 3 2 . 1 . . . . . 1 . . . . . . . 6 . . . . . 1 . . . 1 1 1 Proto ID Catalog 2 | . . . . . . 1 . . . . . . . . . . . . . . . . . . . . . . . . 1 . . Fabricator Hacks 11 | . . . . . . . 4 . 3 . . . . 1 . . . . . . 3 . . . . . . . . . . . . Network Status 3 | . . . . . . . 2 . 1 . . . . . . . . . . . . . . . . . . . . . . . . Load Schematic 5 | . . . . . . . 2 . 1 . . . . . . . . . . . 2 . . . . . . . . . . . . Build 3 | . . . . . . . . . 1 . . . . 1 . . . . . . 1 . . . . . . . . . . . . Repair Station Hacks 17 | . 5 . . 2 . . 5 . 2 . . . . 3 . . . . . . . . . . . . . . . . . . . Scan Component 7 | . 2 . . 1 . . 2 . 1 . . . . 1 . . . . . . . . . . . . . . . . . . . Repair 7 | . 2 . . 1 . . 2 . 1 . . . . 1 . . . . . . . . . . . . . . . . . . . Refit 3 | . 1 . . . . . 1 . . . . . . 1 . . . . . . . . . . . . . . . . . . . Recycling Unit Hacks . | . . . . . . . . . . . . . . . . . . . . . . . . . . . . . . . . . . Scanalyzer 22 | . . . 7 . . . 8 . 1 . . . . . . . . . . . 1 . . . . 5 . . . . . . . Insert Component 6 | . . . 2 . . . 3 . . . . . . . . . . . . . . . . . . 1 . . . . . . . Analyze 5 | . . . 2 . . . 3 . . . . . . . . . . . . . . . . . . . . . . . . . . Retrieve Study 11 | . . . 3 . . . 2 . 1 . . . . . . . . . . . 1 . . . . 4 . . . . . . . Garrison Access Hacks 7 | . . . . . . . 4 . . . . . 1 . . . . . . . 1 . . . . . . . . . 1 . . Seal Access 7 | . . . . . . . 4 . . . . . 1 . . . . . . . 1 . . . . . . . . . 1 . . Unauthorized Hacks 197 | . 13 . 13 13 10 . 32 . 18 8 . . 5 1 . . . . 11 . 22 . . . . 14 7 . 1 8 18 1 2 Terminals 138 | . 11 . 11 11 7 . 17 . 9 6 . . 5 . . . . . 6 . 14 . . . . 8 6 . 1 8 15 1 2 Track 14 | . 2 . 2 1 . . 1 . . . . . 4 . . . . . . . . . . . . . . . . . 1 1 2 Assimilate 13 | . . . 1 1 . . 1 . 3 2 . . 1 . . . . . . . 2 . . . . . . . . 2 . . . Botnet 29 | . 3 . 3 2 2 . 3 . 1 1 . . . . . . . . 2 . 5 . . . . 2 2 . . 1 2 . . Disrupt 5 | . . . . . . . 2 . . . . . . . . . . . . . . . . . . . . . . . 3 . . Operators 1 | . 1 . . . . . . . . . . . . . . . . . . . . . . . . . . . . . . . . Skim 76 | . 5 . 5 7 5 . 10 . 5 3 . . . . . . . . 4 . 7 . . . . 6 4 . 1 5 9 . . Fabricators 8 | . . . . . . . 4 . 3 . . . . . . . . . . . 1 . . . . . . . . . . . . Prioritize 2 | . . . . . . . . . 1 . . . . . . . . . . . 1 . . . . . . . . . . . . Liberate 1 | . . . . . . . . . 1 . . . . . . . . . . . . . . . . . . . . . . . . Haulers 2 | . . . . . . . 1 . 1 . . . . . . . . . . . . . . . . . . . . . . . . Overload 1 | . . . . . . . 1 . . . . . . . . . . . . . . . . . . . . . . . . . . Recompile 2 | . . . . . . . 2 . . . . . . . . . . . . . . . . . . . . . . . . . . Repair Stations 3 | . . . . . . . 2 . . . . . . . . . . . 1 . . . . . . . . . . . . . . Patch 3 | . . . . . . . 2 . . . . . . . . . . . 1 . . . . . . . . . . . . . . Recycling Units 43 | . 2 . 2 2 3 . 8 . 6 2 . . . 1 . . . . 3 . 7 . . . . 3 1 . . . 3 . . Reject 1 | . 1 . . . . . . . . . . . . . . . . . . . . . . . . . . . . . . . . Tunnel 8 | . 1 . 2 2 3 . . . . . . . . . . . . . . . . . . . . . . . . . . . . Fedlink 31 | . . . . . . . 8 . 6 2 . . . 1 . . . . 3 . 6 . . . . 3 1 . . . 1 . . Scraphulk 3 | . . . . . . . . . . . . . . . . . . . . . 1 . . . . . . . . . 2 . . Scanalyzers 3 | . . . . . . . 1 . . . . . . . . . . . . . . . . . . 2 . . . . . . . Extract 3 | . . . . . . . 1 . . . . . . . . . . . . . . . . . . 2 . . . . . . . Garrison Access 2 | . . . . . . . . . . . . . . . . . . . 1 . . . . . . 1 . . . . . . . Jam 2 | . . . . . . . . . . . . . . . . . . . 1 . . . . . . 1 . . . . . . . Data Cores Recovered 9 | . . . 1 1 . . 1 . 2 . . . . . . . . . . . 1 . . . . 1 . . 1 1 . . . Used 4 | . . . 1 1 . . 1 . 1 . . . . . . . . . . . . . . . . . . . . . . . . Hacking Detections 122 | . 9 . 9 9 5 . 22 . 16 7 . . 7 2 . . . . 2 . 9 . . . . 9 3 . 2 3 5 3 . Full Trace Events 6 | . 1 . . . . . 2 . 1 . . . . . . . . . . . . . . . . 1 1 . . . . . . Feedback Events 1 | . . . . . . . 1 . . . . . . . . . . . . . . . . . . . . . . . . . . Corruption 1 | . . . . . . . 1 . . . . . . . . . . . . . . . . . . . . . . . . . . Feedback Blocked . | . . . . . . . . . . . . . . . . . . . . . . . . . . . . . . . . . . Robot Schematics Acquired 6 | . . . . . . . 1 . . . . . . . . . . . . . . . . . . . . . . . 5 . . Robots Built . | . . . . . . . . . . . . . . . . . . . . . . . . . . . . . . . . . . Authchips . | . . . . . . . . . . . . . . . . . . . . . . . . . . . . . . . . . . Time . | . . . . . . . . . . . . . . . . . . . . . . . . . . . . . . . . . . Total Robot Build Rating . | . . . . . . . . . . . . . . . . . . . . . . . . . . . . . . . . . . Part Schematics Acquired 30 | . 2 . 2 1 . . 5 . 1 . . . 1 . . . 4 . 1 . . . . . . 8 . . . . 5 . . Parts Built 4 | . . . . . . . . . 1 . . . . 1 . . . . . . 2 . . . . . . . . . . . . Authchips 2 | . . . . . . . . . 1 . . . . . . . . . . . 1 . . . . . . . . . . . . Time 234 | . . . . . . . . . 53 . . . . 128 . . . . . . 53 . . . . . . . . . . . . Total Part Build Rating 26 | . . . . . . . . . 6 . . . . 8 . . . . . . 12 . . . . . . . . . . . . Part Studies Acquired 11 | . . . 3 . . . 2 . 1 . . . . . . . . . . . 1 . . . . 4 . . . . . . . Parts Repaired 7 | . 2 . . 1 . . 2 . 1 . . . . 1 . . . . . . . . . . . . . . . . . . . Time 210 | . 52 . . 32 . . 76 . 22 . . . . 28 . . . . . . . . . . . . . . . . . . . Parts Recycled . | . . . . . . . . . . . . . . . . . . . . . . . . . . . . . . . . . . Recycled Matter . | . . . . . . . . . . . . . . . . . . . . . . . . . . . . . . . . . . Retrieved Matter . | . . . . . . . . . . . . . . . . . . . . . . . . . . . . . . . . . . Retrieved Components . | . . . . . . . . . . . . . . . . . . . . . . . . . . . . . . . . . . Parts Scanalyzed 4 | . . . 2 . . . 2 . . . . . . . . . . . . . . . . . . . . . . . . . . Part Schematics Acquired 4 | . . . 2 . . . 2 . . . . . . . . . . . . . . . . . . . . . . . . . . Parts Damaged 2 | . . . . . . . 2 . . . . . . . . . . . . . . . . . . . . . . . . . . Bothacking | -11 -10 -10 -9 -9 -9 -9 -6 -6 -6 -6 -6 -6 -6 -5 -5 -5 -5 -4 -4 -4 -4 -4 -4 -4 -3 -3 -3 -3 -2 -2 -2 -1 -1 ------------ Run | Yrd Mat Min Mat Sto Rec Scr Fac Was Fac Ext Cet Arc Hub Fac Upp Upp Zhi Pro Fac Was Fac Upp Upp War Pro Res Arm Lab Res Qua Frg Acc Com Used RIF Installer . | . . . . . . . . . . . . . . . . . . . . . . . . . . . . . . . . . . Robots Hacked 3 | . . . . . . . 1 . . 1 . 1 . . . . . . . . . . . . . . . . . . . . . Non-combat 2 | . . . . . . . 1 . . . . 1 . . . . . . . . . . . . . . . . . . . . . Combat 1 | . . . . . . . . . . 1 . . . . . . . . . . . . . . . . . . . . . . . Robot Hacks Applied 3 | . . . . . . . 1 . . 1 . 1 . . . . . . . . . . . . . . . . . . . . . parse_system 1 | . . . . . . . . . . 1 . . . . . . . . . . . . . . . . . . . . . . . find_chute 1 | . . . . . . . 1 . . . . . . . . . . . . . . . . . . . . . . . . . . check_alert 1 | . . . . . . . . . . . . 1 . . . . . . . . . . . . . . . . . . . . . Relay Couplers Released . | . . . . . . . . . . . . . . . . . . . . . . . . . . . . . . . . . . Fabnet Peak Effective % . | . . . . . . . . . . . . . . . . . . . . . . . . . . . . . . . . . . Robots Rewired 30 | . . . . . 7 . 1 . . 11 . . . . . . . . 1 . . . . . . . 10 . . . . . . Allies Hacked 1 | . . . . . . . . . . . . . . . . . . . . . 1 . . . . . . . . . . . . Hacks Repelled . | . . . . . . . . . . . . . . . . . . . . . . . . . . . . . . . . . . Allies | -11 -10 -10 -9 -9 -9 -9 -6 -6 -6 -6 -6 -6 -6 -5 -5 -5 -5 -4 -4 -4 -4 -4 -4 -4 -3 -3 -3 -3 -2 -2 -2 -1 -1 -------- Run | Yrd Mat Min Mat Sto Rec Scr Fac Was Fac Ext Cet Arc Hub Fac Upp Upp Zhi Pro Fac Was Fac Upp Upp War Pro Res Arm Lab Res Qua Frg Acc Com Total Allies 79 | . . 1 1 10 7 . 2 . 6 17 . . . . . . . . 1 19 2 . . . . . 10 . . 1 2 . . Largest Group 19 | . . 1 1 10 7 7 8 . 4 7 3 1 . . . . . . 1 19 19 . . . . . 6 2 2 1 1 . . Highest-Rated Group 684 | . . 31 10 88 93 93 122 . 97 334 93 31 . . . . . . 49 684 684 . . . . . 365 96 96 45 139 . . Highest-Rated Ally 159 | . . 31 10 16 27 27 29 . 29 159 31 31 . . . . . . 49 50 123 . . . . . 89 48 48 45 139 . . Initial UFD Resources 129 | . . . . . . . 23 49 49 61 65 65 65 68 78 78 78 81 81 97 97 104 104 104 107 107 123 125 129 129 129 . . Total Orders 14 | . . . . . . 1 . . . . 2 . . . . 5 1 . 1 . 1 . . . . . 2 1 . . . . . STAY 4 | . . . . . . 1 . . . . . . . . . . . . . . . . . . . . 2 1 . . . . . ROAM 1 | . . . . . . . . . . . 1 . . . . . . . . . . . . . . . . . . . . . . FOLLOW 1 | . . . . . . . . . . . 1 . . . . . . . . . . . . . . . . . . . . . . EXPLORE 5 | . . . . . . . . . . . . . . . . 3 . . 1 . 1 . . . . . . . . . . . . RETURN 3 | . . . . . . . . . . . . . . . . 2 1 . . . . . . . . . . . . . . . . Ally Attacks 656 | . . 9 . 87 1 . 21 . 13 157 48 4 . . . . . . 3 97 97 . . . . . 56 . 12 . 51 . . Total Damage 18215 | . . 64 . 737 10 . 244 . 230 3601 874 65 . . . . . . 650 3011 3591 . . . . . 1856 . 416 . 2866 . . Kills 121 | . . 3 . 10 . . 1 . 2 28 4 . . . . . . . 7 6 31 . . . . . 11 . 3 . 15 . . Allies Corrupted 3 | . . . . . . . . . 1 . . . . . . . . . . . 2 . . . . . . . . . . . . Allies Melted 2 | . . . . . . . . . . . . . . . . . . . . . . . . . . . . . . 1 1 . . Intel | -11 -10 -10 -9 -9 -9 -9 -6 -6 -6 -6 -6 -6 -6 -5 -5 -5 -5 -4 -4 -4 -4 -4 -4 -4 -3 -3 -3 -3 -2 -2 -2 -1 -1 ------- Run | Yrd Mat Min Mat Sto Rec Scr Fac Was Fac Ext Cet Arc Hub Fac Upp Upp Zhi Pro Fac Was Fac Upp Upp War Pro Res Arm Lab Res Qua Frg Acc Com Active Infowar (turns) 14000 | 14 705 50 195 . . . 992 13 676 705 . 25 289 178 . . . 38 220 194 890 242 121 218 159 935 432 252 230 733 4680 303 511 Optics 10284 | . . . . . . . . . . 127 . . . . . . . 38 220 194 890 242 121 218 159 935 432 252 230 733 4679 303 511 Sensors 10200 | . . . . . . . 920 13 611 99 . . . 31 . . . . . . 304 242 121 218 159 935 432 251 196 717 4607 258 86 Terrain 3489 | . . . . . . . . . . . . . . . . . . . 3 . 130 242 121 218 159 732 432 252 230 733 237 . . Structural 3449 | . 324 . 195 . . . 522 . 663 610 . 25 289 147 . . . . . . 347 . . . . . . . . . . 245 82 Seismic 131 | 14 117 . . . . . . . . . . . . . . . . . . . . . . . . . . . . . . . . Cloaking 6604 | . . . . . . . . . . . . . . . . . . . . 10 86 242 121 218 159 922 432 252 230 732 2734 303 163 Jamming 404 | . . . . . . . . . . . . . . . . . . . . . . . . . . 175 . . 229 . . . . ECM 3092 | . 351 50 . . . . . . . . . . . . . . . . . . . . . . . 931 431 252 230 523 324 . . Robot Analysis Total 9 | . 3 . . . 1 . . . 1 . . . . . . . 4 . . . . . . . . . . . . . . . . Derelict Logs Recovered 6 | . . . . . . . . . . . . . . . 1 1 . . . . . 1 3 . . . . . . . . . . Drone Launches 13 | . . . . . . . . . . . . . . . . 2 1 . 6 . 4 . . . . . . . . . . . . Drone Recoveries 3 | . . . . . . . . . . . . . . . . . 1 . 2 . . . . . . . . . . . . . . Exploration | -11 -10 -10 -9 -9 -9 -9 -6 -6 -6 -6 -6 -6 -6 -5 -5 -5 -5 -4 -4 -4 -4 -4 -4 -4 -3 -3 -3 -3 -2 -2 -2 -1 -1 ------------- Run | Yrd Mat Min Mat Sto Rec Scr Fac Was Fac Ext Cet Arc Hub Fac Upp Upp Zhi Pro Fac Was Fac Upp Upp War Pro Res Arm Lab Res Qua Frg Acc Com Turns Passed 17832 | 53 807 444 617 488 578 494 1135 13 676 708 205 333 343 420 87 107 139 62 220 194 890 242 121 218 159 935 432 252 230 733 4680 303 514 Spaces Moved 29908 | 33 936 733 998 767 445 1139 2797 59 1343 948 166 233 439 399 194 237 143 194 569 215 1940 490 366 647 316 2307 704 236 538 1236 7074 663 404 Core 273 | 33 96 . . . . . . . . . . 20 . 8 . . 49 . 67 . . . . . . . . . . . . . . Treads . | . . . . . . . . . . . . . . . . . . . . . . . . . . . . . . . . . . Legs . | . . . . . . . . . . . . . . . . . . . . . . . . . . . . . . . . . . Wheels . | . . . . . . . . . . . . . . . . . . . . . . . . . . . . . . . . . . Hover 3818 | . . . . . . . . . . . . 185 439 200 . . . . 8 125 84 . . . . . . . . . 1710 663 404 Flight 25817 | . 840 733 998 767 445 1139 2797 59 1343 948 166 28 . 191 194 237 94 194 494 90 1856 490 366 647 316 2307 704 236 538 1236 5364 . . Fastest Speed 10 | 50 37 37 26 26 26 26 21 21 20 24 24 27 44 26 29 29 29 29 29 40 29 29 29 29 29 27 29 30 30 22 10 28 28 Average Speed 28 | 83 43 37 28 26 26 26 24 22 25 24 39 62 50 55 29 29 87 29 33 51 31 29 29 29 29 28 29 30 30 23 20 28 35 Slowest Speed 250 | 100 117 37 37 26 26 27 28 24 27 90 101 120 80 250 29 29 200 29 112 60 60 29 29 109 32 110 30 30 30 103 200 28 116 Overloaded Moves 8 | . . . . . . . . . 8 . . . . . . . . . . . . . . . . . . . . . . . . Propulsion Burnouts . | . . . . . . . . . . . . . . . . . . . . . . . . . . . . . . . . . . Robots Hopped 127 | . 13 14 6 8 3 . 7 . 5 4 . . . 8 . . . 1 9 . 13 . . . . 9 . . 8 2 17 . . Potential Cave-ins 1 | . . . . . . . . . 1 . . . . . . . . . . . . . . . . . . . . . . . . Cave-ins Triggered . | . . . . . . . . . . . . . . . . . . . . . . . . . . . . . . . . . . Teleports 3 | . . . . . . . . . . . . . . . . . . . . . . . . . . . 1 . . 1 1 . . Exploration Rate (%) 62 | 3 96 95 69 84 90 87 75 62 41 85 55 97 59 14 39 56 62 51 19 90 63 63 58 82 72 72 41 94 19 81 91 29 19 Regions Visited 33 Branch Regions 21 Pre-discovered Areas 31 | . 1 . 3 5 4 4 2 . 4 . . . . . . . 3 . . . 1 . 2 . . . . . . 1 1 . . Known Exits Taken 25 | . . 1 1 . 1 . . . 1 1 1 1 1 1 1 1 1 1 . . 1 1 1 1 1 1 1 1 1 1 1 1 . Unknown Exits Taken 4 | 1 1 . . 1 . 1 . . . . . . . . . . . . . . . . . . . . . . . . . . . Scrap Searched 20 | . . 1 . . . 6 . . . . . . . . 1 4 . 1 . . . 1 1 . 5 . . . . . . . . Spaces Dug 240 | . . 1 25 3 . . 51 . 19 3 . . 10 3 1 . . 1 1 . 30 3 1 . 2 19 6 . 7 11 18 18 7 Terrain Destroyed 627 | . . 1 58 26 . . 51 . 19 3 6 2 10 3 1 . . 1 1 . 30 3 1 . 2 19 6 . 7 11 339 18 9 Melee 213 | . . 1 13 3 . . 48 . 17 3 . . 10 3 1 . . 1 1 . 30 3 1 . 2 19 6 . 7 11 14 12 7 Projectile 336 | . . . . . . . 3 . 2 . 6 2 . . . . . . . . . . . . . . . . . . 315 6 2 AOE 78 | . . . 45 23 . . . . . . . . . . . . . . . . . . . . . . . . . . 10 . . Terrain Rammed . | . . . . . . . . . . . . . . . . . . . . . . . . . . . . . . . . . . Walls Destroyed . | . . . . . . . . . . . . . . . . . . . . . . . . . . . . . . . . . . Machines Disabled . | . . . . . . . . . . . . . . . . . . . . . . . . . . . . . . . . . . Actions | -11 -10 -10 -9 -9 -9 -9 -6 -6 -6 -6 -6 -6 -6 -5 -5 -5 -5 -4 -4 -4 -4 -4 -4 -4 -3 -3 -3 -3 -2 -2 -2 -1 -1 --------- Run | Yrd Mat Min Mat Sto Rec Scr Fac Was Fac Ext Cet Arc Hub Fac Upp Upp Zhi Pro Fac Was Fac Upp Upp War Pro Res Arm Lab Res Qua Frg Acc Com Total 37278 | 45 1186 877 1281 1001 893 1329 3086 58 1609 1374 276 357 494 493 208 270 155 196 583 296 2099 566 378 674 377 2469 892 405 567 1621 9781 749 633 Wait 4696 | . 151 124 89 203 434 176 162 . 208 326 75 64 9 22 2 28 1 1 6 79 60 46 12 7 57 24 136 150 8 320 1606 45 65 Move 29637 | 32 910 704 986 751 438 1138 2783 58 1332 939 165 232 438 387 193 236 142 191 552 214 1913 489 365 646 315 2288 703 235 522 1231 7043 662 404 Hop 113 | . 12 14 5 7 3 . 7 . 5 4 . . . 3 . . . 1 8 . 13 . . . . 9 . . 7 2 13 . . Pick Up 133 | 2 6 . 17 3 1 5 7 . 4 4 . 2 1 6 . . 1 . . . 5 . . 1 1 3 1 3 1 4 50 2 3 Fast Attach 222 | 6 9 3 1 1 . . 9 . 4 9 1 8 1 17 3 3 5 1 8 2 22 4 . 8 . 7 2 4 2 7 64 5 6 Attach 121 | . 1 . 5 1 . . 8 . 5 4 3 1 2 3 . . 1 . . 1 3 1 . . 1 4 3 . 2 7 48 4 13 Detach 69 | . . . . 1 . . 3 . 3 4 1 . . . . . 1 . 1 . 2 3 . . . 4 2 1 1 5 30 6 1 Swap 194 | . 7 9 10 5 1 3 19 . 5 6 3 5 2 . . . 1 . . . 3 1 . 1 . 14 1 1 4 2 75 1 15 Drop 238 | . 15 12 6 3 1 7 14 . 9 10 1 1 . 5 1 1 3 1 5 . 14 4 . 10 . 10 3 4 1 7 76 5 9 Fire 762 | 5 75 8 6 2 . . 3 . 2 3 27 16 . 14 . . . . . . . 12 . 1 . . 7 . . 7 568 2 4 Melee 730 | . . 3 21 24 15 . 71 . 23 36 . 28 33 35 9 2 . 1 3 . 64 6 1 . 3 69 34 7 19 29 65 16 113 Ram 1 | . . . . . . . . . . . . . . 1 . . . . . . . . . . . . . . . . . . . Kick . | . . . . . . . . . . . . . . . . . . . . . . . . . . . . . . . . . . Crush . | . . . . . . . . . . . . . . . . . . . . . . . . . . . . . . . . . . Escape Stasis 115 | . . . . . . . . . . . . . . . . . . . . . . . . . . 30 . . . . 84 1 . Rewire 30 | . . . . . . . . . . 29 . . . . . . . . . . . . . . . . . . . . 1 . . Trap 190 | . . . 135 . . . . . . . . . . . . . . . . . . . . . . 7 . . . . 48 . . Miscellaneous 27 | . . . . . . . . . 9 . . . 8 . . . . . . . . . . . . . . . . . 10 . . Route ------- -11/Scrapyard -10/Materials (discovered 6 exits: *Mat x3 / *Min x2 / Sub) -10/Mines (discovered 4 exits: *Mat x2 / [*Exi] / *Sub) -9/Materials (discovered 6 exits: *Mat x3 / *Min x2 / *Sto) -9/Storage (discovered 2 exits: *Mat / *Rec) -9/Recycling (discovered 2 exits: *Fac / *Scr) -9/Scraptown (discovered 2 exits: *Fac x2) -6/Factory (discovered 6 exits: *Fac x4 / *Low x2) -6/Waste -6/Factory (discovered 8 exits: Fac x4 / *Low x2 / *Ext x2) -6/Extension (discovered 2 exits: *Fac / *Cet) -6/Cetus (discovered 2 exits: *Fac / *Arc) -6/Archives (discovered 3 exits: *Fac / *Hub x2) -6/Hub_04(d) (discovered 4 exits: *Fac x4) -5/Factory (discovered 3 exits: *Fac / *Upp x2) -5/Upper Caves -5/Upper Caves (discovered 2 exits: Fac / *Zhi) -5/Zhirov -4/Proximity Caves -4/Factory -4/Waste -4/Factory (discovered 4 exits: *Res x2 / *Upp x2) -4/Upper Caves -4/Upper Caves (discovered 2 exits: Res / *War) -4/Warlord -3/Proximity Caves -3/Research (discovered 5 exits: *Res x2 / *Arm / *Tes x2) -3/Armory (discovered 3 exits: Res x2 / *Lab) -3/Lab -2/Research (discovered 2 exits: Acc / *Qua) -2/Quarantine (discovered 3 exits: *Acc / *Sec / *Frg) -2/Protoforge -1/Access -1/Command History --------- Turn | Location | Event 3 | -11/Scrapyard | Discovered new exit (range 16) 54 | -11/Scrapyard | Entered Materials 230 | -10/Materials | Destroyed 9 combat bots 251 | -10/Materials | Discovered new exit (range 14) 310 | -10/Materials | Build established: Mutant 326 | -10/Materials | Discovered new exit (range 6) 367 | -10/Materials | Discovered new exit (range 5) 467 | -10/Materials | Discovered new exit (range 18) 526 | -10/Materials | Identified exit to Materials 568 | -10/Materials | Repaired ECM Suite 575 | -10/Materials | Learned Storage stockpile data 596 | -10/Materials | Repaired Lgt. Ion Engine 644 | -10/Materials | Identified exit to Subcaves 664 | -10/Materials | Learned 2 Materials zone layouts 693 | -10/Materials | Learned 4 Subcaves zone layouts 718 | -10/Materials | Build established: Scavenger-Mutant 861 | -10/Materials | Entered Mines 889 | -10/Mines | Received a Mining Laser from a helpful Derelict 904 | -10/Mines | Met a Derelict bent on vengeance 972 | -10/Mines | Assembled infested the area 1068 | -10/Mines | Discovered exit to Subcaves (range 9) 1087 | -10/Mines | Deemed a non-threat by the Exiles lab entrance 1087 | -10/Mines | Discovered new exit (range 5) 1173 | -10/Mines | Met a Derelict shopkeep closing up shop 1238 | -10/Mines | A weapon hastily lodged in a ceiling crevice suddenly fell to the ground 1305 | -10/Mines | Entered Materials 1305 | -9/Materials | Evolved 2 slots: Propulsion x2 1306 | -9/Materials | Identified exit to Materials 1419 | -9/Materials | Discovered exit to Materials (range 8) 1551 | -9/Materials | Loaded intel: 32 trap records 1596 | -9/Materials | Identified exit to Storage 1596 | -9/Materials | Identified exit to Mines 1655 | -9/Materials | Learned 4 Recycling zone layouts 1682 | -9/Materials | Central database locked down 1734 | -9/Materials | Learned Materials stockpile data 1916 | -9/Materials | Build established: Sprinter 1922 | -9/Materials | Entered Storage 1974 | -9/Storage | Learned location of Armory (-3) 2023 | -9/Storage | Discovered exit to Materials (range 16) 2052 | -9/Storage | Discovered new exit (range 11) 2053 | -9/Storage | Used back door to open Recycling access 2087 | -9/Storage | Assisted by bots powering up and referring to "LRC-V3" 2192 | -9/Storage | Learned location of Zion (-7) 2215 | -9/Storage | Learned 4 Materials zone layouts 2229 | -9/Storage | Learned location of Mines (-9) 2233 | -9/Storage | Learned Materials stockpile data 2235 | -9/Storage | Loaded intel: 15 terminal locations 2247 | -9/Storage | Learned 4 Recycling zone layouts 2306 | -9/Storage | Learned Storage stockpile data 2322 | -9/Storage | First assault squad dispatched 2367 | -9/Storage | Repaired VTOL Module+ 2385 | -9/Storage | Lost 8 allies 2410 | -9/Storage | Entered Recycling 2411 | -9/Recycling | Identified exit to Factory 2411 | -9/Recycling | Identified exit to Scraptown 2548 | -9/Recycling | Scanned before Scraplab entrance 2635 | -9/Recycling | Entered Scraplab 2696 | -9/Recycling | Learned 2 Materials zone layouts 2736 | -9/Recycling | Build established: Commander-Sprinter 2759 | -9/Recycling | Learned 2 Storage zone layouts 2811 | -9/Recycling | Learned Materials security intel 2918 | -9/Recycling | Learned location of 1 exit from Storage 2968 | -9/Recycling | Learned 2 Materials zone layouts 2988 | -9/Recycling | Entered Scraptown 2988 | -9/Scraptown | Accompanied by 7 allies 3026 | -9/Scraptown | Visited UFD Registry 3026 | -9/Scraptown | Registered with UFD as "Fluxhead" 3028 | -9/Scraptown | Visited Artisan Demo Area 3031 | -9/Scraptown | Visited Shadow of the Wyrm 3035 | -9/Scraptown | Visited Science Testing Area 3038 | -9/Scraptown | Visited Awakened 3044 | -9/Scraptown | Visited Cyclists 3046 | -9/Scraptown | Entered Cyclist Reading Room 3050 | -9/Scraptown | Visited The Evicted 3064 | -9/Scraptown | Heard Great Nut preacher, LISTEN AND RECITE! 3095 | -9/Scraptown | Discovered new exit (range 13) 3137 | -9/Scraptown | Visited DA-N13 Charitable Foundation 3140 | -9/Scraptown | Found DCF Scrap (28 items) 3146 | -9/Scraptown | Visited Curators Association 3155 | -9/Scraptown | Visited Abandonware Association 3158 | -9/Scraptown | Learned abandonware demo "REVENGE.EXE" 3158 | -9/Scraptown | Learned abandonware demo "MELTYB.EXE" 3165 | -9/Scraptown | Visited Cartography Club 3172 | -9/Scraptown | Discovered new exit (range 5) 3374 | -9/Scraptown | Found Surveybot 17 Chip 3392 | -9/Scraptown | Found Deep Structural Scanner 3395 | -9/Scraptown | Learned location of Lower Caves (-6) 3395 | -9/Scraptown | Learned location of Quarantine (-2) 3395 | -9/Scraptown | Learned 12 Factory zone layouts 3395 | -9/Scraptown | Learned 4 Access zone layouts 3395 | -9/Scraptown | Learned 4 Storage zone layouts 3395 | -9/Scraptown | Learned 8 Lower Caves zone layouts 3395 | -9/Scraptown | Learned 8 Proximity Caves zone layouts 3395 | -9/Scraptown | Learned 24 Proximity Caves zone layouts 3395 | -9/Scraptown | Learned 4 Hub_04(d) zone layouts 3395 | -9/Scraptown | Learned location of 2 exits from Research 3395 | -9/Scraptown | Learned location of 2 exits from Upper Caves 3395 | -9/Scraptown | Learned location of 3 exits from Upper Caves 3401 | -9/Scraptown | Visited Scrapoid Pod Storage 3406 | -9/Scraptown | Visited Scrap Suit Storage 3409 | -9/Scraptown | Visited Botcube Research 3429 | -9/Scraptown | Visited Infowarlord's Domain 3433 | -9/Scraptown | Found Exp. Signal Interpreter 3439 | -9/Scraptown | Visited Science Guys 3448 | -9/Scraptown | Visited Scrapoid Research Area 3466 | -9/Scraptown | Met Optimus 3466 | -9/Scraptown | Accepted into 0bPrime 3482 | -9/Scraptown | Entered Factory 3482 | -6/Factory | Accompanied by 7 allies 3482 | -6/Factory | Evolved 6 slots: Propulsion x2, Utility x4 3483 | -6/Factory | Identified exit to Factory 3484 | -6/Factory | Identified exit to Lower Caves 3707 | -6/Factory | Loaded intel: 8 recycling unit locations 3726 | -6/Factory | Lost 3 allies 3729 | -6/Factory | Watched by a mysterious "MATRIX" hacker. 3767 | -6/Factory | Learned location of Protoforge (-2) 3897 | -6/Factory | Learned location of 1 exit from Extension 3933 | -6/Factory | Learned location of 1 exit from Lower Caves 3959 | -6/Factory | Learned 4 Lower Caves zone layouts 3975 | -6/Factory | Learned location of 2 exits from Upper Caves 3982 | -6/Factory | Learned 2 Extension zone layouts 3998 | -6/Factory | Learned Extension emergency access door positions 4000 | -6/Factory | Build established: Hacker-Scout 4026 | -6/Factory | Learned 2 Proximity Caves zone layouts 4074 | -6/Factory | Discovered exit to Lower Caves (range 15) 4237 | -6/Factory | Repaired Broken Exp. Signal Interpreter 4402 | -6/Factory | Repaired Greatsword+ 4418 | -6/Factory | Learned location of 1 exit from Lower Caves 4485 | -6/Factory | Learned 2 Upper Caves zone layouts 4505 | -6/Factory | Learned 2 Extension zone layouts 4513 | -6/Factory | Learned location of Cetus (-6) 4514 | -6/Factory | Learned Extension emergency access door positions 4515 | -6/Factory | Learned Extension trap positions 4517 | -6/Factory | Loaded intel: 72 trap records 4531 | -6/Factory | Learned 4 Factory zone layouts 4556 | -6/Factory | Learned Hub_04(d) trap positions 4617 | -6/Factory | Manually triggered Chute Trap 4617 | -6/Factory | Sucked down chute 4617 | -6/Factory | Entered Waste 4618 | -6/Waste | Identified exit to Factory 4620 | -6/Waste | Spotted C-40 Crusher 4622 | -6/Waste | Spotted C-40 Crusher 4622 | -6/Waste | Spotted C-40 Crusher 4625 | -6/Waste | Spotted C-40 Crusher 4630 | -6/Waste | Entered Factory 4672 | -6/Factory | Build established: Hacker-Sprinter 4678 | -6/Factory | Repaired Greatsword+ 4706 | -6/Factory | Fabricated Nuclear Pulse Array? 4784 | -6/Factory | Loaded intel: 8 recycling unit locations 4845 | -6/Factory | Discovered new exit (range 6) 4911 | -6/Factory | Learned location of Proximity Caves (-6) 4915 | -6/Factory | Discovered new exit (range 7) 4973 | -6/Factory | Learned 2 Upper Caves zone layouts 5013 | -6/Factory | Build established: Hacker-Scout 5015 | -6/Factory | Central database locked down 5020 | -6/Factory | Discovered exit to Lower Caves (range 6) 5026 | -6/Factory | Loaded intel: 4 scanalyzer locations 5086 | -6/Factory | Discovered exit to Lower Caves (range 8) 5116 | -6/Factory | Spotted B-75 Beast 5126 | -6/Factory | Identified exit to Extension 5139 | -6/Factory | Learned location of 1 exit from Proximity Caves 5194 | -6/Factory | Loaded intel: 27 terminal locations 5306 | -6/Factory | Entered Extension 5307 | -6/Extension | Identified exit to Cetus 5309 | -6/Extension | Loaded intel: 20 trap records 5346 | -6/Extension | Loaded intel: 2 recycling unit locations 5374 | -6/Extension | Rescued a captive Derelict 5385 | -6/Extension | Rescued A7 5388 | -6/Extension | Attached CPS modules to A7. 5390 | -6/Extension | Attached CPS modules to A7. 5462 | -6/Extension | Rescued a captive Derelict 5464 | -6/Extension | Rescued a captive Derelict 5465 | -6/Extension | Lost 3 parts (1n1u1w) 5465 | -6/Extension | Lost 3 allies 5682 | -6/Extension | Spotted B-75 Beast 5728 | -6/Extension | Spotted B-75 Beast 5742 | -6/Extension | Allies destroyed B-75 Beast 5747 | -6/Extension | Extracted ID and sensor layout for unrecognized location from A7's data core 5750 | -6/Extension | Found Prototype Protection 5750 | -6/Extension | Identified Med. Regenerative Plating 5766 | -6/Extension | Rescued a captive Derelict 5783 | -6/Extension | Lost 5 allies 5940 | -6/Extension | Build established: Scavenger-Sprinter 5973 | -6/Extension | Lost 3 allies 5979 | -6/Extension | Discovered exit to Factory (range 10) 6014 | -6/Extension | Entered Cetus 6014 | -6/Cetus | Accompanied by 3 allies 6028 | -6/Cetus | Spotted Cetus Guard 6028 | -6/Cetus | Spotted Cetus Guard 6031 | -6/Cetus | Spotted Cetus Guard 6031 | -6/Cetus | Spotted Cetus Guard 6033 | -6/Cetus | Destroyed Cetus Guard 6039 | -6/Cetus | Destroyed Cetus Guard 6047 | -6/Cetus | Allies destroyed Cetus Guard 6055 | -6/Cetus | Destroyed Cetus Guard 6101 | -6/Cetus | Discovered new exit (range 15) 6124 | -6/Cetus | Spotted Cetus Guard 6124 | -6/Cetus | Spotted Cetus Guard 6135 | -6/Cetus | Destroyed Cetus Guard 6144 | -6/Cetus | Allies destroyed Cetus Guard 6152 | -6/Cetus | Spotted Cetus Guard 6155 | -6/Cetus | Destroyed Cetus Guard 6157 | -6/Cetus | Destroyed Cetus Guard 6187 | -6/Cetus | Discovered exit to Factory (range 15) 6189 | -6/Cetus | Met Revision 17 6199 | -6/Cetus | Identified exit to Archives 6219 | -6/Cetus | Entered Archives 6219 | -6/Archives | Accompanied by 1 ally 6299 | -6/Archives | Lost 3 parts (3n) 6412 | -6/Archives | Discovered exit to Factory (range 16) 6473 | -6/Archives | Discovered new exit (range 15) 6520 | -6/Archives | Discovered new exit (range 16) 6538 | -6/Archives | Identified exit to Hub_04(d) 6552 | -6/Archives | Entered Hub_04(d) 6554 | -6/Hub_04(d) | Loaded intel: 17 trap records 6567 | -6/Hub_04(d) | Build established: Scavenger-Mutant 6602 | -6/Hub_04(d) | Discovered exit to Factory (range 16) 6612 | -6/Hub_04(d) | Core integrity fell below 50% 6642 | -6/Hub_04(d) | Discovered exit to Factory (range 9) 6673 | -6/Hub_04(d) | Targeted by mysterious "MATRIX" hacker. 6704 | -6/Hub_04(d) | Discovered exit to Factory (range 16) 6777 | -6/Hub_04(d) | Network Hub disabled 6789 | -6/Hub_04(d) | Spotted Lightning 6791 | -6/Hub_04(d) | Spotted Lightning 6838 | -6/Hub_04(d) | Network Hub disabled 6846 | -6/Hub_04(d) | Spotted Lightning 6873 | -6/Hub_04(d) | Core integrity fell below 20% 6895 | -6/Hub_04(d) | Entered Factory 6895 | -5/Factory | Evolved 2 slots: Power x1, Utility x1 6896 | -5/Factory | Identified exit to Upper Caves 6903 | -5/Factory | Lost 9 parts (1p5n2u1w) 6941 | -5/Factory | Repaired Phasing Sabre 6955 | -5/Factory | Discovered new exit (range 17) 7092 | -5/Factory | Core integrity fell below 50% 7102 | -5/Factory | Fabricated Gamma Bomb Array? 7115 | -5/Factory | Lost 7 parts (2p1n4u) 7258 | -5/Factory | Core integrity fell below 20% 7294 | -5/Factory | Loaded intel: 8 recycling unit locations 7315 | -5/Factory | Entered Upper Caves 7316 | -5/Upper Caves | Identified exit to Upper Caves 7323 | -5/Upper Caves | Lost 8 parts (2p5n1u) 7402 | -5/Upper Caves | Entered another Upper Caves area 7403 | -5/Upper Caves | Identified exit to Factory 7403 | -5/Upper Caves | Identified exit to Zhirov 7436 | -5/Upper Caves | Learned Factory emergency access door positions 7509 | -5/Upper Caves | Entered Zhirov 7509 | -5/Zhirov | Accompanied by 1 ally 7509 | -5/Zhirov | Discovered new exit (range 3) 7515 | -5/Zhirov | Met Zhirov 7566 | -5/Zhirov | Found Alien Artifact 7566 | -5/Zhirov | Identified Integrated Dissipator 7566 | -5/Zhirov | Installed Integrated Dissipator, increased core heat dissipation (+20) 7591 | -5/Zhirov | Found Alien Artifact 7636 | -5/Zhirov | Learned location of Command (-1) 7640 | -5/Zhirov | Zhirov requested help retrieving the SGEMP Prototype 7647 | -5/Zhirov | Identified exit to Proximity Caves 7648 | -5/Zhirov | Entered Proximity Caves 7648 | -4/Proximity Caves | Accompanied by 1 ally 7652 | -4/Proximity Caves | Spotted B-86 Titan 7710 | -4/Proximity Caves | Entered Factory 7710 | -4/Factory | Evolved 2 slots: Utility x2 7711 | -4/Factory | Identified exit to Research 7738 | -4/Factory | Loaded intel: 8 recycling unit locations 7769 | -4/Factory | Spotted B-86 Titan 7792 | -4/Factory | P-70 Sage assimilated allied Destroyer 7a 7831 | -4/Factory | Lost 3 allies 7916 | -4/Factory | Lost 5 parts (2n2u1w) 7929 | -4/Factory | Core integrity fell below 50% 7930 | -4/Factory | Manually triggered Chute Trap 7930 | -4/Factory | Sucked down chute 7930 | -4/Factory | Entered Waste 7931 | -4/Waste | Met a frightened Derelict 7938 | -4/Waste | Spotted C-40 Crusher 7941 | -4/Waste | Spotted C-40 Crusher 7951 | -4/Waste | Warlord forces began an assault 7951 | -4/Waste | Allies destroyed C-40 Crusher 7966 | -4/Waste | Allies destroyed C-40 Crusher 7991 | -4/Waste | Spotted C-40 Crusher 8007 | -4/Waste | Spotted C-40 Crusher 8008 | -4/Waste | Spotted C-40 Crusher 8010 | -4/Waste | Allies destroyed C-40 Crusher 8014 | -4/Waste | Allies destroyed C-40 Crusher 8033 | -4/Waste | Spotted C-40 Crusher 8036 | -4/Waste | Allies destroyed C-40 Crusher 8080 | -4/Waste | Discovered new exit (range 11) 8093 | -4/Waste | Identified exit to Factory 8124 | -4/Waste | Entered Factory 8124 | -4/Factory | Accompanied by 19 allies 8173 | -4/Factory | Garrison activated, responded to threat 8174 | -4/Factory | Build established: Mutant 8222 | -4/Factory | Lost 3 parts (1p1n1u) 8222 | -4/Factory | Lost 12 allies 8367 | -4/Factory | Discovered exit to Research (range 5) 8382 | -4/Factory | Fabricated Adv. System Restoration Module? 8402 | -4/Factory | Loaded intel: 8 recycling unit locations 8528 | -4/Factory | Scraphulk reinforcements arrived? 8566 | -4/Factory | Lost 3 parts (1n2u) 8572 | -4/Factory | Identified exit to Upper Caves 8614 | -4/Factory | Learned Research scanalyzer intel 8644 | -4/Factory | Learned Armory stockpile data 8664 | -4/Factory | Loaded intel: 4 scanalyzer locations 8674 | -4/Factory | Learned Armory trap positions 8692 | -4/Factory | Learned Research stockpile data 8721 | -4/Factory | Learned location of Warlord (-4) 8732 | -4/Factory | Found Exp. Terrain Scan Processor 8762 | -4/Factory | Learned location of 2 exits from Proximity Caves 8808 | -4/Factory | Discovered exit to Research (range 14) 8862 | -4/Factory | Spotted B-86 Titan 9014 | -4/Factory | Entered Upper Caves 9015 | -4/Upper Caves | Identified exit to Upper Caves 9108 | -4/Upper Caves | Acquired the password to a Derelict Tinkerer's latest research 9110 | -4/Upper Caves | Found Prototype Special Weapon 9110 | -4/Upper Caves | Identified Molecular Deconstructor 9224 | -4/Upper Caves | Build established: Scavenger-Ninja 9236 | -4/Upper Caves | Learned Research stockpile data 9240 | -4/Upper Caves | Entered an active Warlord outpost 9241 | -4/Upper Caves | Learned Extension trap positions 9241 | -4/Upper Caves | Learned Extension security intel 9241 | -4/Upper Caves | Learned Extension terminal intel 9256 | -4/Upper Caves | Entered another Upper Caves area 9257 | -4/Upper Caves | Identified exit to Warlord 9258 | -4/Upper Caves | Learned Research emergency access door positions 9376 | -4/Upper Caves | Attracted the attention of an 0b10 checkpoint 9377 | -4/Upper Caves | Entered Warlord 9378 | -4/Warlord | Identified exit to Proximity Caves 9533 | -4/Warlord | Found Prototype Device 9533 | -4/Warlord | Identified Thermal Barrier 9541 | -4/Warlord | Found Prototype Processor 9541 | -4/Warlord | Identified Exp. Targeting Computer 9544 | -4/Warlord | Found Prototype Reactor 9544 | -4/Warlord | Identified Vortex Chain Reactor 9574 | -4/Warlord | Opened side exit 9576 | -4/Warlord | Warlord's base attacked by MAIN.C 9595 | -4/Warlord | Entered Proximity Caves 9595 | -3/Proximity Caves | Spotted B-86 Titan 9598 | -3/Proximity Caves | Spotter reported a threat 9598 | -3/Proximity Caves | Spotter reported a threat 9754 | -3/Proximity Caves | Entered Research 9754 | -3/Research | Evolved 2 slots: Propulsion x2 9755 | -3/Research | Identified exit to Armory 9756 | -3/Research | Identified exit to Testing 9759 | -3/Research | Loaded intel: 6 scanalyzer locations 9954 | -3/Research | Revision forces began assault on 0b10 10079 | -3/Research | Met up with Revision 17++ 10201 | -3/Research | Identified Transdimensional Reconstructor 10344 | -3/Research | Discovered new exit (range 11) 10348 | -3/Research | Identified exit to Research 10370 | -3/Research | Loaded intel: 5 recycling unit locations 10398 | -3/Research | Learned Research stockpile data 10454 | -3/Research | Research terminal network offline 10479 | -3/Research | Found Prototype Device 10479 | -3/Research | Identified Exp. Thermal Defense Suite 10493 | -3/Research | Discovered exit to Research (range 16) 10571 | -3/Research | Spotted Striker 10689 | -3/Research | Entered Armory 10690 | -3/Armory | Loaded intel: 54 trap records 10721 | -3/Armory | Build established: Infiltrator-Ninja 10817 | -3/Armory | Warped through subspace to slip node 10817 | -3/Armory | Discovered new exit (range 1) 10817 | -3/Armory | Identified exit to Lab 10818 | -3/Armory | Discovered exit to Research (range 16) 10982 | -3/Armory | Discovered exit to Research (range 20) 10982 | -3/Armory | Spotted B-86 Titan 10985 | -3/Armory | Loaded intel: 2 recycling unit locations 11121 | -3/Armory | Entered Lab 11121 | -3/Lab | Accompanied by 2 allies 11121 | -3/Lab | Discovered exit to Research (range 9) 11131 | -3/Lab | Hidden lab's door opened automatically 11131 | -3/Lab | Sensor layout match revealed 11132 | -3/Lab | Gained access to the hidden lab's interior 11138 | -3/Lab | Lost 4 allies 11202 | -3/Lab | Found Alien Artifact 11202 | -3/Lab | Identified Integrated Mediator 11202 | -3/Lab | Installed Integrated Mediator, increased core attachment efficiency 11209 | -3/Lab | Found Alien Artifact 11214 | -3/Lab | Found Transdimensional Reconstructor 11336 | -3/Lab | Found Prototype Energy Gun 11336 | -3/Lab | Identified Hyp. EM Gauss Rifle 11339 | -3/Lab | Found Prototype Energy Cannon 11339 | -3/Lab | Identified Warp Cannon 11343 | -3/Lab | Found Prototype Hackware 11343 | -3/Lab | Identified Quantum Router 11345 | -3/Lab | Found Med. Regenerative Plating 11373 | -3/Lab | Entered Research 11373 | -2/Research | Accompanied by 2 allies 11373 | -2/Research | Evolved 2 slots: Utility x2 11374 | -2/Research | Identified exit to Access 11450 | -2/Research | Found Spectral Analyzer 11471 | -2/Research | Spotted B-90 Cyclops 11592 | -2/Research | Discovered new exit (range 15) 11592 | -2/Research | Spotted B-90 Cyclops 11602 | -2/Research | Identified exit to Quarantine 11603 | -2/Research | Entered Quarantine 11638 | -2/Quarantine | Cryocooling Duct disabled 11646 | -2/Quarantine | Build established: Hacker-Ninja 11653 | -2/Quarantine | Ambient heat levels rising (+20) 11653 | -2/Quarantine | Non-combat units ordered to evacuate 11707 | -2/Quarantine | Found Alien Slashing Weapon 11707 | -2/Quarantine | Identified Sigix Broadsword 11750 | -2/Quarantine | Found Alien Artifact 11760 | -2/Quarantine | Found Alien Artifact 11760 | -2/Quarantine | Identified Phase Redirector 11815 | -2/Quarantine | Learned Research stockpile data 11821 | -2/Quarantine | Cryocooling Duct disabled 11836 | -2/Quarantine | Ambient heat levels rising (+20) 11836 | -2/Quarantine | Combat units ordered to evacuate 11886 | -2/Quarantine | Learned 12 Access zone layouts 11936 | -2/Quarantine | Quarantine Guard activated 11949 | -2/Quarantine | Learned Access repair station intel 11953 | -2/Quarantine | Discovered exit to Access (range 20) 11953 | -2/Quarantine | Spotted Quarantine Guard 11953 | -2/Quarantine | Spotted Quarantine Guard 11965 | -2/Quarantine | Spotted Quarantine Guard 11965 | -2/Quarantine | Spotted Quarantine Guard 11968 | -2/Quarantine | Identified Core Expander 11968 | -2/Quarantine | Installed Core Expander, added new Utility slot 11969 | -2/Quarantine | Identified Subatomic Replicator 11969 | -2/Quarantine | Used Subatomic Replicator to create Alien Artifact 11976 | -2/Quarantine | Found Alien Artifact 11979 | -2/Quarantine | Found Transdimensional Reconstructor 11979 | -2/Quarantine | Warped through subspace 12004 | -2/Quarantine | Spotted Quarantine Guard 12004 | -2/Quarantine | Spotted Quarantine Guard 12042 | -2/Quarantine | Identified exit to Section 7 12075 | -2/Quarantine | Learned location of 1 exit from Research 12125 | -2/Quarantine | Spotted Fortress 12169 | -2/Quarantine | Learned Research emergency access door positions 12233 | -2/Quarantine | Learned Section 7 garrison access intel 12298 | -2/Quarantine | Destroyed Fortress 12330 | -2/Quarantine | Discovered new exit (range 8) 12336 | -2/Quarantine | Identified exit to Protoforge 12336 | -2/Quarantine | Entered Protoforge 12336 | -2/Protoforge | Spotted Hotshot 12336 | -2/Protoforge | Spotted Hotshot 12380 | -2/Protoforge | Superfortress began startup sequence 12421 | -2/Protoforge | Discovered exit to Access (range 9) 12476 | -2/Protoforge | Spotted B-90 Cyclops 12486 | -2/Protoforge | Spotted Hotshot 12486 | -2/Protoforge | Spotted Hotshot 12544 | -2/Protoforge | Spotted AP7-3 12548 | -2/Protoforge | Spotted AP7-3 12562 | -2/Protoforge | Spotted EXE-6 12562 | -2/Protoforge | Spotted EXE-6 12572 | -2/Protoforge | UFD initiated attack on Protoforge (Readiness: Maximal) 12572 | -2/Protoforge | Loaded intel: 3 recycling unit locations 12608 | -2/Protoforge | Optimus greeted in Protoforge 12609 | -2/Protoforge | Destroyed AP7-3 12613 | -2/Protoforge | Spotted Decapitator 12613 | -2/Protoforge | Spotted Decapitator 12616 | -2/Protoforge | Found Prototype Processor 12616 | -2/Protoforge | Identified Exp. Target Analyzer 12628 | -2/Protoforge | Found Prototype Processor 12628 | -2/Protoforge | Identified Exp. Core Analyzer 12630 | -2/Protoforge | Found Prototype Device 12630 | -2/Protoforge | Identified Exp. Kinecellerator 12633 | -2/Protoforge | Found Exp. Core Analyzer 12639 | -2/Protoforge | Identified Dimensional Node Initializer 12639 | -2/Protoforge | Initialized slip node 12656 | -2/Protoforge | Found Prototype Protection 12656 | -2/Protoforge | Identified Cep. Core Shell 12661 | -2/Protoforge | Identified Supercharged TR 12661 | -2/Protoforge | Warped through subspace to slip node 12662 | -2/Protoforge | Optimus attacked Superfortress 12663 | -2/Protoforge | Spotted Immortal 12667 | -2/Protoforge | Spotted Executioner 12679 | -2/Protoforge | Spotted Striker 12682 | -2/Protoforge | Spotted Executioner 12693 | -2/Protoforge | Found Prototype Storage 12694 | -2/Protoforge | Found Prototype Device 12696 | -2/Protoforge | Identified Exp. Force Field 12697 | -2/Protoforge | Found Prototype Power Core 12699 | -2/Protoforge | Identified Cep. Chromion Battery 12700 | -2/Protoforge | Found Prototype Power Core 12702 | -2/Protoforge | Found Prototype Device 12702 | -2/Protoforge | Identified Cep. Matter Streamer 12705 | -2/Protoforge | Found Prototype Power Core 12705 | -2/Protoforge | Identified Cep. Zero-point Core (x3) 12712 | -2/Protoforge | Lost 7 allies 12734 | -2/Protoforge | Scraphulk reinforcements arrived 12873 | -2/Protoforge | Spotted Executioner 12875 | -2/Protoforge | Spotted Executioner 12878 | -2/Protoforge | Allies destroyed Executioner 12879 | -2/Protoforge | Destroyed Executioner 12900 | -2/Protoforge | Build established: Hacker-Scout 12927 | -2/Protoforge | Scraphulk reinforcements arrived 12961 | -2/Protoforge | UFD reported confirmed Drillbomb installation 12994 | -2/Protoforge | Spotted Executioner 13010 | -2/Protoforge | UFD reported confirmed Drillbomb installation 13052 | -2/Protoforge | Spotted Hotshot 13075 | -2/Protoforge | Spotted Decapitator 13075 | -2/Protoforge | Spotted Decapitator 13075 | -2/Protoforge | Spotted Decapitator 13075 | -2/Protoforge | Spotted Decapitator 13097 | -2/Protoforge | Spotted V523-j 13143 | -2/Protoforge | Destroyed V523-j 13147 | -2/Protoforge | Found Prototype Ballistic Gun 13147 | -2/Protoforge | Identified Multirail 13182 | -2/Protoforge | Spotted Hotshot 13182 | -2/Protoforge | Spotted Hotshot 13238 | -2/Protoforge | Spotted EXE-6 13390 | -2/Protoforge | Spotted Immortal 13423 | -2/Protoforge | Destroyed Immortal 13430 | -2/Protoforge | Found Prototype Device 13430 | -2/Protoforge | Identified Exp. Cloaking Device 13432 | -2/Protoforge | Found Prototype Device 13432 | -2/Protoforge | Identified Cep. Antimissile System 13436 | -2/Protoforge | Found Exp. Jetlance 13442 | -2/Protoforge | Spotted Decapitator 13442 | -2/Protoforge | Spotted Decapitator 13442 | -2/Protoforge | Spotted Decapitator 13442 | -2/Protoforge | Spotted Decapitator 13451 | -2/Protoforge | Found Mni. Quantum Capacitor 13494 | -2/Protoforge | Forge Plexus network access discovered 13585 | -2/Protoforge | Found Cep. Fieldthrust Drive 13587 | -2/Protoforge | Spotted V923-j 13587 | -2/Protoforge | Found Faulty Cep. Fieldthrust Drive 13589 | -2/Protoforge | Found Faulty Cep. Fieldthrust Drive 13593 | -2/Protoforge | Spotted V856-x 13600 | -2/Protoforge | Spotted V535-f 13619 | -2/Protoforge | Found Crosscalibrator 13734 | -2/Protoforge | UFD reported confirmed Drillbomb installation 13794 | -2/Protoforge | UFD reported confirmed Drillbomb installation 13860 | -2/Protoforge | Build established: Scavenger-Ninja 13907 | -2/Protoforge | Spotted AP7-3 13909 | -2/Protoforge | Spotted AP7-3 13938 | -2/Protoforge | Destroyed AP7-3 13939 | -2/Protoforge | Destroyed AP7-3 13943 | -2/Protoforge | Found Prototype Energy Gun 13943 | -2/Protoforge | Identified Enh. Gamma Rifle 13963 | -2/Protoforge | Found Faulty Cep. Cloak Mesh 13964 | -2/Protoforge | Found Faulty Cep. Cloak Mesh 13966 | -2/Protoforge | Found Cep. Dimensional Manipulator 13987 | -2/Protoforge | Found Cep. Antigrav Storage Unit 13995 | -2/Protoforge | Found Cep. Chromion Battery 14033 | -2/Protoforge | Additional patrols dispatched to research labs 14035 | -2/Protoforge | Found Cep. Nanofilaments [Conductive] 14035 | -2/Protoforge | Installed Cep. Nanofilaments [Conductive], 2 resistances modified: TH -15%, EM +25% 14041 | -2/Protoforge | Found Transdimensional Reconstructor 14203 | -2/Protoforge | Spotted V155-a 14203 | -2/Protoforge | Spotted V348-e 14204 | -2/Protoforge | Spotted Immortal 14208 | -2/Protoforge | Spotted Immortal 14228 | -2/Protoforge | Destroyed Immortal 14240 | -2/Protoforge | Destroyed Immortal 14243 | -2/Protoforge | Found Exp. Jetlance 14244 | -2/Protoforge | Found Cep. Antimissile System 14254 | -2/Protoforge | Spotted V076-v 14255 | -2/Protoforge | Found Faulty Cep. Zero-point Core 14396 | -2/Protoforge | Spotted V383-y 14410 | -2/Protoforge | Found Faulty Cep. Zero-point Core 14527 | -2/Protoforge | Destroyed Decapitator 14528 | -2/Protoforge | Destroyed Decapitator 14529 | -2/Protoforge | Destroyed Decapitator 14556 | -2/Protoforge | Spotted V899-n 14556 | -2/Protoforge | Found Faulty Cep. Rapid Grenade Launcher 14560 | -2/Protoforge | Found Faulty Cep. Rapid Grenade Launcher 14587 | -2/Protoforge | Destroyed V899-n 14615 | -2/Protoforge | Spotted V338-o 14625 | -2/Protoforge | Spotted V771-o 14673 | -2/Protoforge | Destroyed V771-o 14684 | -2/Protoforge | Destroyed V338-o 14689 | -2/Protoforge | Found Prototype Device 14689 | -2/Protoforge | Identified Exp. Weapon Cycler 14787 | -2/Protoforge | Spotted Decapitator 14787 | -2/Protoforge | Spotted Decapitator 14793 | -2/Protoforge | Found Cep. Network Penetrator 14799 | -2/Protoforge | Found Cep. Network Penetrator 14813 | -2/Protoforge | Found Cep. Deflector Sword 14826 | -2/Protoforge | Destroyed Decapitator 14828 | -2/Protoforge | Destroyed Decapitator 14830 | -2/Protoforge | Destroyed Decapitator 14861 | -2/Protoforge | Found Cep. Phase Shift Module 14870 | -2/Protoforge | Found Cep. RG22 Armor 14876 | -2/Protoforge | Found Femtoactuators 14878 | -2/Protoforge | Found Cep. Weapon Articulator 14880 | -2/Protoforge | Found Femtoactuators 14881 | -2/Protoforge | Found Cep. Melee Reflex Suite 14974 | -2/Protoforge | Lost 5 allies 14998 | -2/Protoforge | Spotted Executioner 14998 | -2/Protoforge | Destroyed Executioner 15000 | -2/Protoforge | Spotted Executioner 15029 | -2/Protoforge | Destroyed 9 combat bots 15032 | -2/Protoforge | Destroyed Executioner 15036 | -2/Protoforge | Spotted Executioner 15036 | -2/Protoforge | Spotted Striker 15048 | -2/Protoforge | Destroyed Executioner 15067 | -2/Protoforge | Destroyed Striker 15071 | -2/Protoforge | Installed UFD Drillbomb at designated target 15071 | -2/Protoforge | UFD reported confirmed Drillbomb installation 15086 | -2/Protoforge | Spotted Striker 15086 | -2/Protoforge | Spotted Striker 15107 | -2/Protoforge | Destroyed Striker 15109 | -2/Protoforge | Spotted Executioner 15120 | -2/Protoforge | Spotted Executioner 15128 | -2/Protoforge | Lost 3 allies 15150 | -2/Protoforge | Spotted Executioner 15204 | -2/Protoforge | Destroyed Executioner 15232 | -2/Protoforge | Lost 6 allies 15257 | -2/Protoforge | Destroyed Executioner 15269 | -2/Protoforge | Destroyed Hotshot 15281 | -2/Protoforge | Destroyed Hotshot 15286 | -2/Protoforge | Spotted Striker 15286 | -2/Protoforge | Spotted Executioner 15316 | -2/Protoforge | Warp Cannon suddenly broke down 15332 | -2/Protoforge | Spotted Striker 15339 | -2/Protoforge | Spotted Executioner 15352 | -2/Protoforge | Destroyed Executioner 15392 | -2/Protoforge | Lost 6 allies 15404 | -2/Protoforge | Spotted Striker 15406 | -2/Protoforge | Spotted Executioner 15440 | -2/Protoforge | Lost 3 allies 15444 | -2/Protoforge | Spotted Striker 15451 | -2/Protoforge | Destroyed Striker 15458 | -2/Protoforge | Spotted Executioner 15498 | -2/Protoforge | Found Cep. Helical Railcannon 15500 | -2/Protoforge | Spotted V499-m 15500 | -2/Protoforge | Spotted V379-d 15500 | -2/Protoforge | Spotted V199-e 15501 | -2/Protoforge | Found Cep. Helical Railcannon 15553 | -2/Protoforge | Found Faulty Cep. RG22 Armor 15559 | -2/Protoforge | Found Cep. Beam Splitter 15562 | -2/Protoforge | Found Cep. Hardlight Director 15598 | -2/Protoforge | Spotted Executioner 15681 | -2/Protoforge | Found Cep. Gyrokinetic System 15916 | -2/Protoforge | Found Cep. Blasthammer 15965 | -2/Protoforge | Spotted Executioner 15965 | -2/Protoforge | Spotted Striker 16061 | -2/Protoforge | Spotted Executioner 16067 | -2/Protoforge | Spotted Striker 16070 | -2/Protoforge | Destroyed Executioner 16074 | -2/Protoforge | UFD reported confirmed Drillbomb installation 16078 | -2/Protoforge | Destroyed Striker 16101 | -2/Protoforge | Spotted Executioner 16101 | -2/Protoforge | Spotted Executioner 16103 | -2/Protoforge | Destroyed Executioner 16110 | -2/Protoforge | Destroyed Executioner 16138 | -2/Protoforge | Destroyed 18 combat bots 16247 | -2/Protoforge | Build established: Hacker-Scout 16268 | -2/Protoforge | Spotted Executioner 16268 | -2/Protoforge | Spotted Striker 16293 | -2/Protoforge | Destroyed Striker 16305 | -2/Protoforge | Destroyed Executioner 16329 | -2/Protoforge | Spotted Striker 16331 | -2/Protoforge | Spotted Striker 16335 | -2/Protoforge | Destroyed Striker 16338 | -2/Protoforge | Spotted Executioner 16339 | -2/Protoforge | Spotted Striker 16392 | -2/Protoforge | Destroyed Executioner 16398 | -2/Protoforge | Destroyed Striker 16432 | -2/Protoforge | Learned Access garrison access intel 16451 | -2/Protoforge | Spotted Striker 16454 | -2/Protoforge | Destroyed Striker 16490 | -2/Protoforge | Learned 4 Research zone layouts 16492 | -2/Protoforge | Destroyed 11 combat bots 16505 | -2/Protoforge | UFD reported confirmed Drillbomb installation 16524 | -2/Protoforge | Spotted Striker 16525 | -2/Protoforge | Destroyed 02F67-K 16527 | -2/Protoforge | Spotted Striker 16528 | -2/Protoforge | Spotted Striker 16529 | -2/Protoforge | Spotted Executioner 16531 | -2/Protoforge | Destroyed Striker 16537 | -2/Protoforge | Learned Research trap positions 16549 | -2/Protoforge | Spotted Striker 16553 | -2/Protoforge | Spotted Executioner 16563 | -2/Protoforge | Destroyed Executioner 16575 | -2/Protoforge | Learned 12 Research zone layouts 16582 | -2/Protoforge | UFD reported confirmed Drillbomb installation 16595 | -2/Protoforge | Destroyed 10 combat bots 16595 | -2/Protoforge | Lost 7 allies 16601 | -2/Protoforge | Learned 4 Research zone layouts 16615 | -2/Protoforge | Learned Research stockpile data 16617 | -2/Protoforge | Learned Access terminal intel 16627 | -2/Protoforge | Spotted Striker 16629 | -2/Protoforge | Learned Research garrison access intel 16633 | -2/Protoforge | Spotted Executioner 16634 | -2/Protoforge | Spotted Striker 16638 | -2/Protoforge | Destroyed Striker 16638 | -2/Protoforge | P-80 Master assimilated allied Lugger 713 16652 | -2/Protoforge | Learned 8 Research zone layouts 16669 | -2/Protoforge | Lost 7 allies 16681 | -2/Protoforge | Installed UFD Drillbomb at designated target 16681 | -2/Protoforge | UFD reported confirmed Drillbomb installation 16697 | -2/Protoforge | Destroyed 9 combat bots 16722 | -2/Protoforge | Spotted Executioner 16775 | -2/Protoforge | Spotted Executioner 16812 | -2/Protoforge | Spotted Striker 16823 | -2/Protoforge | Spotted Striker 16823 | -2/Protoforge | Spotted Executioner 16823 | -2/Protoforge | Spotted Executioner 16823 | -2/Protoforge | Destroyed Striker 16823 | -2/Protoforge | Spotted Executioner 16827 | -2/Protoforge | Destroyed Executioner 16829 | -2/Protoforge | Destroyed Executioner 16833 | -2/Protoforge | Destroyed Executioner 16847 | -2/Protoforge | Spotted Executioner 16847 | -2/Protoforge | Spotted Executioner 16849 | -2/Protoforge | Destroyed Executioner 16884 | -2/Protoforge | Lost 4 allies 16901 | -2/Protoforge | Destroyed 15 combat bots 16922 | -2/Protoforge | Spotted Executioner 16922 | -2/Protoforge | Spotted Striker 16922 | -2/Protoforge | Spotted Striker 16922 | -2/Protoforge | Spotted Striker 16935 | -2/Protoforge | Destroyed Executioner 16944 | -2/Protoforge | Destroyed Striker 16947 | -2/Protoforge | Spotted Striker 16947 | -2/Protoforge | Spotted Striker 16953 | -2/Protoforge | Destroyed Striker 16957 | -2/Protoforge | Destroyed Striker 16989 | -2/Protoforge | Destroyed 8 combat bots 16990 | -2/Protoforge | Lost 11 allies 16990 | -2/Protoforge | UFD reported confirmed Drillbomb installation 16991 | -2/Protoforge | UFD began Drillbomb countdown 17016 | -2/Protoforge | Entered Access 17016 | -1/Access | Evolved 2 slots: Utility x2 17018 | -1/Access | Loaded intel: 22 terminal locations 17019 | -1/Access | Loaded intel: 4 repair station locations 17020 | -1/Access | Loaded intel: 6 garrison access locations 17160 | -1/Access | Identified exit to Command 17208 | -1/Access | Spotted Executioner 17266 | -1/Access | First assault squad dispatched 17285 | -1/Access | Spotted B-99 Colossus 17288 | -1/Access | Spotted Executioner 17319 | -1/Access | Entered Command 17325 | -1/Command | Spotted Striker 17412 | -1/Command | Spotted M Guard 17415 | -1/Command | Spotted M Guard 17415 | -1/Command | Spotted Combat Programmer 17415 | -1/Command | Spotted Combat Programmer 17431 | -1/Command | Destroyed Combat Programmer 17431 | -1/Command | Spotted Executioner 17431 | -1/Command | Spotted Executioner 17439 | -1/Command | Destroyed Executioner 17445 | -1/Command | Destroyed Combat Programmer 17454 | -1/Command | Destroyed Executioner 17548 | -1/Command | Spotted Striker 17567 | -1/Command | Lost 4 parts (2n1u1w) 17569 | -1/Command | First assault squad dispatched 17572 | -1/Command | Destroyed M Guard 17572 | -1/Command | All MAIN.C guards destroyed 17618 | -1/Command | Destroyed Striker 17619 | -1/Command | Destroyed Striker 17640 | -1/Command | Met MAIN.C 17737 | -1/Command | Destroyed MAIN.C Shell 17739 | -1/Command | MAIN.C activated Command garrisons 17766 | -1/Command | Found Prototype Protection 17766 | -1/Command | Identified Centrium Heavy Armor Plating 17808 | -1/Command | 0b10 Conduit disabled 17816 | -1/Command | Core integrity fell below 50% 17829 | -1/Command | Core integrity fell below 20% 17829 | -1/Command | Spotted Executioner 17830 | -1/Command | Spotted Executioner 17833 | -1/Command | Destroyed by S-43 Plague with Heavy Machine Gun Last Messages --------------- payload. 17825_ S-43 Plague unfolds itself. 17825_ Cep. Weapon Articulator destroyed. 17826_ P-80 Master resets C-57 Dissector, system corruption cleaned. 17828_ Sigix Broadsword destroyed. 17828_ P-80 Master resets C-45 Heavy ARC, system corruption cleaned. 17829_ C-45 Heavy ARC bursts open, deploying its payload. 17829_ Executioner unfolds itself. 17830_ C-57 Dissector destroyed. 17830_ Cep. Blasthammer destroyed. 17830_ Spectral Analyzer destroyed. 17830_ P-80 Master resets C-57 Dissector, system corruption cleaned. 17830_ Cep. Melee Reflex Suite destroyed. 17831_ Cep. Zero-point Core destroyed. 17832_ Cep. Chromion Battery destroyed. 17832_ Acquired Adv. Concussive RPG. Map ----- +----------------------------------------------------+ | ?????????????????????????????????????????????????? | | ?????????????????????????????????????????????????? | | ?????????????????????????????????????????????????? | | ?????????????????????????????????????????????????? | | ?????????????????????????????????????????????????? | | ?????????????????????????????????????????????????? | | ?????????????????????????????????????????????????? | | ?????????????????????????????????????????????????? | | ?????????????????????????????????????????????????? | | ?????????????????????????????????????????????????? | | ?????????????????????????????????????????????????? | | ?????????????????????????????????????????????????? | | ?????????????????????????????????????????????????? | | ?????????????????????????????????????????????????? | | ?????????????????????????????????????????????????? | | ?????????????#################???????????????????? | | ???????????"""" """" #???????????????????? | | ??????????? "" #???????????????????? | | ????????????" "" ##################### | | ???????????"""""""" *E/ !/ % =%!% | | ??????????? " """ !xpEs%!!!! !==[* | | ?????????????""""" sp%s%p !*! !%%%!! | | ?????????????""""" =xxMc###################![ | | ?????????????""""" !*]!cs#?????????????????#=* | | ?????????" "" =%=cc#?????????????????#%% | | ???????? " " =@%%/#?????????????????#/* | | ?????????"""""""" "" """#?????????????????#++ | | ?????????? """ """""#?????????????????#=[ | | ???????# """""""""""#?????????????????#!! | | ???????# " " " " #?????????????????#!! | | ???????# ??" " " " #?????????????????#%= | | ???????" ??? " " """" " #?????????????????# | | ???????" ????" " " """" #?????????????????# | | ????????????????????" " #?????????????????### | | ????????????????????" " #???????????????????? | | ?????????????????????""??""""#???????????????????? | | ??????????????????????????? #???????????????????? | | ???????????????????????????##????????????????????? | | ?????????????????????????????????????????????????? | | ?????????????????????????????????????????????????? | | ?????????????????????????????????????????????????? | | ?????????????????????????????????????????????????? | | ?????????????????????????????????????????????????? | | ?????????????????????????????????????????????????? | | ?????????????????????????????????????????????????? | | ?????????????????????????????????????????????????? | | ?????????????????????????????????????????????????? | | ?????????????????????????????????????????????????? | | ?????????????????????????????????????????????????? | | ?????????????????????????????????????????????????? | +----------------------------------------------------+ Best States ------------- Heat Dissipation 107 Coolant Potential 120 Energy Generation 61 Energy Capacity 1500 Matter Stores 300 Matter Capacity 300 Sight Range 24 Robot Scan Range 16 Terrain Scan Range 20 Terrain Scan Density 1210 ECM Strength 2 Jamming Range 14 Cloak Strength 9 Additional Mass Support 30 EM Shielding 2 Armor Coverage 300 Resistance: TH 60 Resistance: EM 25 Core Shielding 90 Propulsion Shielding 33 Weapon Shielding 90 Point Defense Rating 960 Projectile Deflection 15 Weapon Cycling 30 Melee Speed Boost 50 Phase Shifting 25 Evasion (%) 98 Targeting Accuracy 30 Melee Accuracy 5 Target Analysis 10 Core Analysis 12 Recoil Reduction 2 Salvage Targeting 4 Offensive Hacking 100 Defensive Hacking 25 Authchip Count 2 Trap Extractor Capacity 6 Item Schematics ----------------- ECM Suite | -10/Materials | Hacked Hcp. Storage Unit | -10/Materials | Hacked Cesium-ion Thruster | -9/Materials | Scanalyzed Hacking Suite | -9/Materials | Scanalyzed Hcp. Matter Pod | -9/Storage | Hacked Nuclear Pulse Array | -6/Factory | Hacked Hyp. Mass Driver | -6/Factory | Hacked Exp. Signal Interpreter | -6/Factory | Scanalyzed Imp. System Restoration Module | -6/Factory | Scanalyzed Phase Cannon | -6/Factory | Extracted Power Sword | -6/Factory | Hacked Adv. System Restoration Module | -6/Hub_04(d) | Hacked Assault Drone Bay | -5/Zhirov | Free Exp. Heat Sink | -5/Zhirov | Free Exp. Optical Array | -5/Zhirov | Free Imp. Arc Thrower | -5/Zhirov | Free Adv. Corruption Screen | -4/Factory | Hacked Imp. Gyrokinetic Inverter | -3/Research | Extracted Lgt. Antimatter Reactor | -3/Research | Extracted Enh. Armored Medium Treads | -3/Research | Extracted Imp. Propulsion Shielding | -3/Research | Extracted Imp. System Shield | -3/Research | Extracted Adv. Weight Redist. System | -3/Research | Extracted Imp. Antigrav System | -3/Research | Extracted Weight Redist. System | -3/Research | Extracted Hvy. Tesla Rifle | -2/Protoforge | Archive Exp. Cloaking Device | -2/Protoforge | Archive Lrn. Phase Cannon | -2/Protoforge | Archive Enh. Armored Heavy Treads | -2/Protoforge | Archive Adv. Myomer Leg | -2/Protoforge | Archive Robot Schematics ------------------ M-22 Extractor | -6/Factory | Hacked K-01 Serf | -2/Protoforge | Archive E-15 Imp | -2/Protoforge | Archive R-10 Processor | -2/Protoforge | Archive S-43 Plague | -2/Protoforge | Archive A-27 Freighter | -2/Protoforge | Archive Fabricated ------------ Nuclear Pulse Array | x1 | -6/Factory | Authchip Gamma Bomb Array | x1 | -5/Factory | Preloaded Adv. System Restoration Module | x2 | -4/Factory | Authchip Repaired ---------- ECM Suite | 65% | -10/Materials Lgt. Ion Engine | 47% | -10/Materials VTOL Module | 8% | -9/Storage Exp. Signal Interpreter | 99% | -6/Factory | Broken Greatsword | 15% | -6/Factory Greatsword | 32% | -6/Factory Phasing Sabre | 4% | -5/Factory Studied --------- VTOL Module | -9/Materials | Hacked Lgt. Ion Engine | -9/Materials | Hacked Flight Unit | -9/Materials | Hacked Cesium-ion Thruster | -6/Factory | Hacked Greatsword | -6/Factory | Hacked Lgt. Angular Momentum Engine | -6/Factory | Hacked Field Propulsion Array | -4/Factory | Hacked Impulse Thruster Array | -3/Research | Hacked Q-thruster | -3/Research | Hacked Lgt. Antimatter Reactor | -3/Research | Hacked Imp. Fusion Compressor | -3/Research | Hacked Alien Tech Used ----------------- Integrated Dissipator Transdimensional Reconstructor Integrated Mediator Sigix Broadsword Phase Redirector Core Expander Subatomic Replicator Dimensional Node Initializer Supercharged TR Concept Nanofilaments [Conductive] Achievements -------------- None Challenges ------------ None Game ------ Seed MyomerShadeMace Manual? 0 Play Time 07:14:06 Cumulative 920.4 hours Start 2026.02.13 @ 16:28:24 End 2026.02.13 @ 23:53:38 Sessions 1 Manual Loads 0 Difficulty Rogue Special Mode None Game No. 354 Rogue 354 Adventurer 0 Explorer 0 Win Type - Total 95 Types 44/6/17/9/8/1/1/3/1/5 Lore% 98 Gallery% 88 Achievement% 86 Wizard Run 0 Options --------- Layout 1 ASCII 0 Keyboard 0 Movement Numpad Keybinds 0 Fullscreen 1 Font 24/Smallcaps Map View 50x35 Zoom Use 0% Tactical HUD 1 Map Filters NONE Filters NONE Steam 1 RUN: a18295ae-dec6-46f4-b0f9-49d484b38068